Workbook

Sheet zászlók
C2: Kérjük, válasszon nyelvet. | J2: Please, choose language.
C10: Ha a nyelv kiválasztása nem működik, próbálkozzon | J10: Please try to reduce the security level if you
C11: a lap biztonsági szintjének csökkentésével. | J11: have any problem with changing the language.
A20: 1

Sheet ábra
B1: =+B83 -> Bevételek | H1: =+B89 -> Kiadások
D19: =+IF(zászlók!A20=1,"Adat jellege: ","type of data") -> Adat jellege:
B29: 16 | E29: 1 | H29: 28
B30: =+IF(zászlók!$A$20=1,'G2'!B9,'G2'!A9) -> Járulékbevételek, hozzájárulások | E30: =+IF(zászlók!$A$20=1,"havi teljesítés, millió Ft","monthly facts, billion HUF") -> havi teljesítés, millió Ft | H30: =+IF(zászlók!$A$20=1,'G3'!B9,'G3'!A9) -> Nyugellátások
B31: =+IF(zászlók!$A$20=1,'G2'!B10,'G2'!A10) -> ebből: Ny Alap | E31: =+IF(zászlók!$A$20=1,"halmozott teljesítés, millió Ft","cumulated facts, billion HUF") -> halmozott teljesítés, millió Ft | H31: =+IF(zászlók!$A$20=1,'G3'!B10,'G3'!A10) -> ebből: Ny Alap
B32: =+IF(zászlók!$A$20=1,'G2'!B11,'G2'!A11) -> E Alap | E32: =+IF(zászlók!$A$20=1,"teljesítési arány, %","rate of facts, %") -> teljesítési arány, % | H32: =+IF(zászlók!$A$20=1,'G3'!B11,'G3'!A11) -> E Alap
B33: =+IF(zászlók!$A$20=1,'G2'!B12,'G2'!A12) -> Költségvetési hozzájárulások | H33: =+IF(zászlók!$A$20=1,'G3'!B12,'G3'!A12) -> Egészségbiztosítás pénzbeli ellátásai
B34: =+IF(zászlók!$A$20=1,'G2'!B13,'G2'!A13) -> ebből: Ny Alap | H34: =+IF(zászlók!$A$20=1,'G3'!B13,'G3'!A13) -> ebből : Csecsemőgondozási díj
B35: =+IF(zászlók!$A$20=1,'G2'!B14,'G2'!A14) -> E Alap | H35: =+IF(zászlók!$A$20=1,'G3'!B14,'G3'!A14) -> Táppénz
B36: =+IF(zászlók!$A$20=1,'G2'!B15,'G2'!A15) -> Egyéb bevételek | H36: =+IF(zászlók!$A$20=1,'G3'!B15,'G3'!A15) -> GYED és örökbefogadói díj
B37: =+IF(zászlók!$A$20=1,'G2'!B16,'G2'!A16) -> ebből: Ny Alap | H37: =+IF(zászlók!$A$20=1,'G3'!B16,'G3'!A16) -> Rokkantsági, rehabilitációs ellátások
B38: =+IF(zászlók!$A$20=1,'G2'!B17,'G2'!A17) -> E Alap | H38: =+IF(zászlók!$A$20=1,'G3'!B17,'G3'!A17) -> EA egyéb pénzbeli ellátásai
B39: =+IF(zászlók!$A$20=1,'G2'!B18,'G2'!A18) -> Vagyongazdálkodás bevételei | H39: =+IF(zászlók!$A$20=1,'G3'!B18,'G3'!A18) -> Egészségbiztosítás természetbeni ellátásai
B40: =+IF(zászlók!$A$20=1,'G2'!B19,'G2'!A19) -> ebből: Ny Alap | H40: =+IF(zászlók!$A$20=1,'G3'!B19,'G3'!A19) -> ebből: Gyógyító-megelőző ellátás
B41: =+IF(zászlók!$A$20=1,'G2'!B20,'G2'!A20) -> E Alap | H41: =+IF(zászlók!$A$20=1,'G3'!B20,'G3'!A20) -> Gyógyszertámogatás
B42: =+IF(zászlók!$A$20=1,'G2'!B21,'G2'!A21) -> Tb. költségvetési szerv bevételei | H42: =+IF(zászlók!$A$20=1,'G3'!B21,'G3'!A21) -> Gyógyászati segédeszköz támogatás
B43: =+IF(zászlók!$A$20=1,'G2'!B22,'G2'!A22) -> ebből: Ny Alap | H43: =+IF(zászlók!$A$20=1,'G3'!B22,'G3'!A22) -> EA egyéb természetbeni ellátásai
B44: =+IF(zászlók!$A$20=1,'G2'!B23,'G2'!A23) -> E Alap | H44: =+IF(zászlók!$A$20=1,'G3'!B23,'G3'!A23) -> Természetbeni ellátások céltartaléka
B45: =+IF(zászlók!$A$20=1,'G2'!B24,'G2'!A24) -> KÖLTSÉGVETÉSI BEVÉTELI FŐÖSSZEG | H45: =+IF(zászlók!$A$20=1,'G3'!B24,'G3'!A24) -> Egyéb kiadások
B46: =+IF(zászlók!$A$20=1,'G2'!B25,'G2'!A25) -> ebből: Ny Alap | H46: =+IF(zászlók!$A$20=1,'G3'!B25,'G3'!A25) -> ebből: Ny Alap
B47: =+IF(zászlók!$A$20=1,'G2'!B26,'G2'!A26) -> E Alap | H47: =+IF(zászlók!$A$20=1,'G3'!B26,'G3'!A26) -> E Alap
B48: =+IF(zászlók!$A$20=1,'G2'!B27,'G2'!A27) -> TB ALAPOK KÖLTSÉGVETÉS SZERINTI EGYENLEGE | G48: =+IF(zászlók!$A$20=1,'G3'!B29,'G3'!A29) -> E Alap | H48: =+IF(zászlók!$A$20=1,'G3'!B27,'G3'!A27) -> Vagyongazdálkodás kiadásai
B49: =+IF(zászlók!$A$20=1,'G2'!B28,'G2'!A28) -> ebből: Ny Alap | H49: =+IF(zászlók!$A$20=1,'G3'!B28,'G3'!A28) -> ebből: Ny Alap
B50: =+IF(zászlók!$A$20=1,'G2'!B29,'G2'!A29) -> E Alap | H50: =+IF(zászlók!$A$20=1,'G3'!B29,'G3'!A29) -> E Alap
B51: =+IF(zászlók!$A$20=1,'G2'!B30,'G2'!A30) -> NEM A TB ALAPOKBÓL FIN. ELLÁTÁSOK EGYENLEGE | H51: =+IF(zászlók!$A$20=1,'G3'!B30,'G3'!A30) -> Költségvetési befizetések
B52: =+IF(zászlók!$A$20=1,'G2'!B31,'G2'!A31) -> ebből: Ny Alap | H52: =+IF(zászlók!$A$20=1,'G3'!B31,'G3'!A31) -> ebből: Ny Alap
B53: =+IF(zászlók!$A$20=1,'G2'!B32,'G2'!A32) -> E Alap | H53: =+IF(zászlók!$A$20=1,'G3'!B32,'G3'!A32) -> E Alap
B54: =+IF(zászlók!$A$20=1,'G2'!B33,'G2'!A33) -> PÉNZFORGALMI EGYENLEG | H54: =+IF(zászlók!$A$20=1,'G3'!B33,'G3'!A33) -> Tb. költségvetési szerv kiadásai
B55: =+IF(zászlók!$A$20=1,'G2'!B34,'G2'!A34) -> ebből: Ny Alap | H55: =+IF(zászlók!$A$20=1,'G3'!B34,'G3'!A34) -> ebből: Ny Alap
B56: =+IF(zászlók!$A$20=1,'G2'!B35,'G2'!A35) -> E Alap | H56: =+IF(zászlók!$A$20=1,'G3'!B35,'G3'!A35) -> E Alap
H57: =+IF(zászlók!$A$20=1,'G3'!B36,'G3'!A36) -> KÖLTSÉGVETÉSI KIADÁSI FŐÖSSZEG
H58: =+IF(zászlók!$A$20=1,'G3'!B37,'G3'!A37) -> ebből: Ny Alap
H59: =+IF(zászlók!$A$20=1,'G3'!B38,'G3'!A38) -> E Alap
H60: =+IF(zászlók!$A$20=1,'G3'!B39,'G3'!A39) -> Központi költségvetésből finanszírozott ellátások
H61: =+IF(zászlók!$A$20=1,'G3'!B40,'G3'!A40) -> ebből: Ny Alap
H62: =+IF(zászlók!$A$20=1,'G3'!B41,'G3'!A41) -> E Alap
H63: =+IF(zászlók!$A$20=1,'G3'!B42,'G3'!A42) -> Egyéb forrásból finanszírozott ellátások
H64: =+IF(zászlók!$A$20=1,'G3'!B43,'G3'!A43) -> ebből: Ny Alap
H65: =+IF(zászlók!$A$20=1,'G3'!B44,'G3'!A44) -> E Alap
H66: =+IF(zászlók!$A$20=1,'G3'!B45,'G3'!A45) -> NEM A TB ALAPOKBÓL FIN. ELLÁTÁSOK KIADÁSAI
H67: =+IF(zászlók!$A$20=1,'G3'!B46,'G3'!A46) -> ebből: Ny Alap
H68: =+IF(zászlók!$A$20=1,'G3'!B47,'G3'!A47) -> E Alap
H69: =+IF(zászlók!$A$20=1,'G3'!B48,'G3'!A48) -> Kiadások mindösszesen
H70: =+IF(zászlók!$A$20=1,'G3'!B49,'G3'!A49) -> ebből: Ny Alap
H71: =+IF(zászlók!$A$20=1,'G3'!B50,'G3'!A50) -> E Alap
C77: =+C78 -> 2021-01-01 | D77: febr | E77: márc | F77: ápr | G77: máj | H77: jún | I77: júl | J77: aug | K77: szept | L77: okt | M77: nov | N77: dec
C78: =+IF(zászlók!$A$20=1,ábra!C$98,ábra!C$99) -> 2021-01-01 | D78: =+IF(zászlók!$A$20=1,ábra!D$98,ábra!D$99) -> febr. | E78: =+IF(zászlók!$A$20=1,ábra!E$98,ábra!E$99) -> márc. | F78: =+IF(zászlók!$A$20=1,ábra!F$98,ábra!F$99) -> ápr. | G78: =+IF(zászlók!$A$20=1,ábra!G$98,ábra!G$99) -> máj. | H78: =+IF(zászlók!$A$20=1,ábra!H$98,ábra!H$99) -> jún. | I78: =+IF(zászlók!$A$20=1,ábra!I$98,ábra!I$99) -> júl. | J78: =+IF(zászlók!$A$20=1,ábra!J$98,ábra!J$99) -> aug. | K78: =+IF(zászlók!$A$20=1,ábra!K$98,ábra!K$99) -> szept. | L78: =+IF(zászlók!$A$20=1,ábra!L$98,ábra!L$99) -> okt. | M78: =+IF(zászlók!$A$20=1,ábra!M$98,ábra!M$99) -> nov. | N78: =+IF(zászlók!$A$20=1,ábra!N$98,ábra!N$99) -> dec.
B79: =+INDEX($B$85:$B$87,$E$29,1) -> havi teljesítés, millió Ft | C79: =+INDEX($C$85:$N$87,$E$29,C81) -> 740226.5301 | D79: 1152204.155 | E79: 712480.0639 | F79: 762774.4277 | G79: 766889.5265 | H79: 748076.2581 | I79: 759911.2843 | J79: 750305.0871 | K79: 734074.3126
B80: =+INDEX($B$91:$B$93,$E$29,1) -> havi teljesítés, millió Ft | C80: =+INDEX($C$91:$N$93,$E$29,C82) -> 736601.8255 | D80: 1206409.325 | E80: 751449.5151 | F80: 750576.3184 | G80: 756883.977 | H80: 758833.1073 | I80: 757493.964 | J80: 767611.0624 | K80: 776762.1281
C81: 1 | D81: 2 | E81: 3 | F81: 4 | G81: 5 | H81: 6 | I81: 7 | J81: 8 | K81: 9 | L81: 10 | M81: 11 | N81: 12
B83: =+IF(zászlók!$A$20=1,"Bevételek","Revenues") -> Bevételek
B85: =+E30 -> havi teljesítés, millió Ft | C85: =+INDEX('G2'!$F$9:$Q$35,$B$29,C$81) -> 740226.5301 | D85: =+INDEX('G2'!$F$9:$Q$35,$B$29,D$81) -> 1152204.155 | E85: =+INDEX('G2'!$F$9:$Q$35,$B$29,E$81) -> 712480.0639 | F85: =+INDEX('G2'!$F$9:$Q$35,$B$29,F$81) -> 762774.4277 | G85: =+INDEX('G2'!$F$9:$Q$35,$B$29,G$81) -> 766889.5265 | H85: =+INDEX('G2'!$F$9:$Q$35,$B$29,H$81) -> 748076.2581 | I85: =+INDEX('G2'!$F$9:$Q$35,$B$29,I$81) -> 759911.2843 | J85: =+INDEX('G2'!$F$9:$Q$35,$B$29,J$81) -> 750305.0871 | K85: =+INDEX('G2'!$F$9:$Q$35,$B$29,K$81) -> 734074.3126 | L85: =+INDEX('G2'!$F$9:$Q$35,$B$29,L$81) ->  | M85: =+INDEX('G2'!$F$9:$Q$35,$B$29,M$81) ->  | N85: =+INDEX('G2'!$F$9:$Q$35,$B$29,N$81) -> 
B86: =+E31 -> halmozott teljesítés, millió Ft | C86: =+INDEX(G2_kum!$F$9:$Q$34,$B$29,C$81) -> 740226.5301 | D86: =+INDEX(G2_kum!$F$9:$Q$34,$B$29,D$81) -> 1892430.685 | E86: =+INDEX(G2_kum!$F$9:$Q$34,$B$29,E$81) -> 2604910.749 | F86: =+INDEX(G2_kum!$F$9:$Q$34,$B$29,F$81) -> 3367685.177 | G86: =+INDEX(G2_kum!$F$9:$Q$34,$B$29,G$81) -> 4134574.703 | H86: =+INDEX(G2_kum!$F$9:$Q$34,$B$29,H$81) -> 4882650.961 | I86: =+INDEX(G2_kum!$F$9:$Q$34,$B$29,I$81) -> 5642562.245 | J86: =+INDEX(G2_kum!$F$9:$Q$34,$B$29,J$81) -> 6392867.333 | K86: =+INDEX(G2_kum!$F$9:$Q$34,$B$29,K$81) -> 7126941.645 | L86: =+INDEX(G2_kum!$F$9:$Q$34,$B$29,L$81) ->  | M86: =+INDEX(G2_kum!$F$9:$Q$34,$B$29,M$81) ->  | N86: =+INDEX(G2_kum!$F$9:$Q$34,$B$29,N$81) -> 
B87: =+E32 -> teljesítési arány, % | C87: =+INDEX(G2_telj.arány!$F$9:$Q$34,$B$29,C$81) -> 7.720077742 | D87: =+INDEX(G2_telj.arány!$F$9:$Q$34,$B$29,D$81) -> 12.01673446 | E87: =+INDEX(G2_telj.arány!$F$9:$Q$34,$B$29,E$81) -> 7.430700278 | F87: =+INDEX(G2_telj.arány!$F$9:$Q$34,$B$29,F$81) -> 7.955237542 | G87: =+INDEX(G2_telj.arány!$F$9:$Q$34,$B$29,G$81) -> 7.998155326 | H87: =+INDEX(G2_telj.arány!$F$9:$Q$34,$B$29,H$81) -> 7.801945263 | I87: =+INDEX(G2_telj.arány!$F$9:$Q$34,$B$29,I$81) -> 7.925376832 | J87: =+INDEX(G2_telj.arány!$F$9:$Q$34,$B$29,J$81) -> 7.825190488 | K87: =+INDEX(G2_telj.arány!$F$9:$Q$34,$B$29,K$81) -> 7.655914145 | L87: =+INDEX(G2_telj.arány!$F$9:$Q$34,$B$29,L$81) ->  | M87: =+INDEX(G2_telj.arány!$F$9:$Q$34,$B$29,M$81) ->  | N87: =+INDEX(G2_telj.arány!$F$9:$Q$34,$B$29,N$81) -> 
B89: =+IF(zászlók!$A$20=1,"Kiadások","Expenditures") -> Kiadások
B91: =+E30 -> havi teljesítés, millió Ft | C91: =+INDEX('G3'!$F$9:$Q$50,$H$29,C$81) -> 736601.8255 | D91: =+INDEX('G3'!$F$9:$Q$50,$H$29,D$81) -> 1206409.325 | E91: =+INDEX('G3'!$F$9:$Q$50,$H$29,E$81) -> 751449.5151 | F91: =+INDEX('G3'!$F$9:$Q$50,$H$29,F$81) -> 750576.3184 | G91: =+INDEX('G3'!$F$9:$Q$50,$H$29,G$81) -> 756883.977 | H91: =+INDEX('G3'!$F$9:$Q$50,$H$29,H$81) -> 758833.1073 | I91: =+INDEX('G3'!$F$9:$Q$50,$H$29,I$81) -> 757493.964 | J91: =+INDEX('G3'!$F$9:$Q$50,$H$29,J$81) -> 767611.0624 | K91: =+INDEX('G3'!$F$9:$Q$50,$H$29,K$81) -> 776762.1281 | L91: =+INDEX('G3'!$F$9:$Q$50,$H$29,L$81) ->  | M91: =+INDEX('G3'!$F$9:$Q$50,$H$29,M$81) ->  | N91: =+INDEX('G3'!$F$9:$Q$50,$H$29,N$81) -> 
B92: =+E31 -> halmozott teljesítés, millió Ft | C92: =+INDEX(G3_kum!$F$9:$Q$53,$H$29,C$81) -> 736601.8255 | D92: =+INDEX(G3_kum!$F$9:$Q$53,$H$29,D$81) -> 1943011.151 | E92: =+INDEX(G3_kum!$F$9:$Q$53,$H$29,E$81) -> 2694460.666 | F92: =+INDEX(G3_kum!$F$9:$Q$53,$H$29,F$81) -> 3445036.984 | G92: =+INDEX(G3_kum!$F$9:$Q$53,$H$29,G$81) -> 4201920.961 | H92: =+INDEX(G3_kum!$F$9:$Q$53,$H$29,H$81) -> 4960754.069 | I92: =+INDEX(G3_kum!$F$9:$Q$53,$H$29,I$81) -> 5718248.033 | J92: =+INDEX(G3_kum!$F$9:$Q$53,$H$29,J$81) -> 6485859.095 | K92: =+INDEX(G3_kum!$F$9:$Q$53,$H$29,K$81) -> 7262621.223 | L92: =+INDEX(G3_kum!$F$9:$Q$53,$H$29,L$81) ->  | M92: =+INDEX(G3_kum!$F$9:$Q$53,$H$29,M$81) ->  | N92: =+INDEX(G3_kum!$F$9:$Q$53,$H$29,N$81) -> 
B93: =+E32 -> teljesítési arány, % | C93: =+INDEX(G3_telj.arány!$F$9:$Q$53,$H$29,C$81) -> 7.676588397 | D93: =+INDEX(G3_telj.arány!$F$9:$Q$53,$H$29,D$81) -> 12.57274624 | E93: =+INDEX(G3_telj.arány!$F$9:$Q$53,$H$29,E$81) -> 7.831325458 | F93: =+INDEX(G3_telj.arány!$F$9:$Q$53,$H$29,F$81) -> 7.822225329 | G93: =+INDEX(G3_telj.arány!$F$9:$Q$53,$H$29,G$81) -> 7.887961385 | H93: =+INDEX(G3_telj.arány!$F$9:$Q$53,$H$29,H$81) -> 7.908274491 | I93: =+INDEX(G3_telj.arány!$F$9:$Q$53,$H$29,I$81) -> 7.894318441 | J93: =+INDEX(G3_telj.arány!$F$9:$Q$53,$H$29,J$81) -> 7.999755052 | K93: =+INDEX(G3_telj.arány!$F$9:$Q$53,$H$29,K$81) -> 8.095124032 | L93: =+INDEX(G3_telj.arány!$F$9:$Q$53,$H$29,L$81) ->  | M93: =+INDEX(G3_telj.arány!$F$9:$Q$53,$H$29,M$81) ->  | N93: =+INDEX(G3_telj.arány!$F$9:$Q$53,$H$29,N$81) -> 
C98: 2021-01-01 | D98: febr. | E98: márc. | F98: ápr. | G98: máj. | H98: jún. | I98: júl. | J98: aug. | K98: szept. | L98: okt. | M98: nov. | N98: dec.
C99: 2021-01-01 | D99: Febr | E99: March | F99: April | G99: May | H99: June | I99: July | J99: August | K99: Sept | L99: Oct | M99: Nov | N99: Dec

Sheet G1
B1: Magyar Államkincstár | T1: 9. Szám
J2: A társadalombiztosítás pénzügyi alapjainak előzetes mérlege | T2: G/1 melléklet
T3: Millió forintban
A4: Hungarian State Treasury | T4: No. 9
J5: Preliminary Balance of Social Security Funds | T5: Appendix G/1
T6: Million HUF
C7: 2022.évi | H7: 2023.évi | M7: 2022.évi | R7: 2023.évi
B8: Bevételek | C8: Előzetes teljesítés | D8: Teljesítés I-IX.hó | E8: Teljesítés %-a * | F8: Törvényi előirányzat | G8: Törvénnyel módosított előirányzat | H8: Módosított előirányzat | I8: Teljesítés I-IX.hó | J8: Teljesítés %-a * | L8: Kiadások | M8: Előzetes teljesítés | N8: Teljesítés I-IX.hó | O8: Teljesítés %-a * | P8: Törvényi előirányzat | Q8: Törvénnyel módosított előirányzat | R8: Módosított előirányzat | S8: Teljesítés I-IX.hó | T8: Teljesítés %-a *
A9: Revenues | C9: preliminary facts | D9: facts January-September | E9: % of facts ** | F9: approved | G9: appropriation amended by Law | H9: appropriation amended by governmental and ministerial decision | I9: facts January-September | J9: % of facts ** | K9: Expenditures | M9: preliminary facts | N9: facts January-September | O9: % of facts ** | P9: approved | Q9: appropriation amended by Law | R9: appropriation amended by governmental and ministerial decision | S9: facts January-September | T9: % of facts **
A10: REVENUES COVERING PROVISIONS | B10: ELLÁTÁSOK FEDEZETÉÜL SZOLGÁLÓ BEVÉTELEK | K10: EXPENDITURES OF SOCIAL SECURITY PROVISIONS | L10: TÁRSADALOMBIZTOSÍTÁSI ELLÁTÁSOK KIADÁSAI
A11: Total of contributions | B11: Járulék- és hozzájárulás bevételek összesen | C11: 5965492.64 | D11: 4410956.788 | E11: 73.94119906 | F11: 7022100 | G11: 7022100 | H11: 7022100 | I11: 5061605.979 | J11: 72.08108655 | K11: Pensions | L11: Nyugellátások | M11: 4791512.197 | N11: 3507103.685 | O11: 73.19408864 | P11: 5545800 | Q11: 5545800 | R11: 5545800 | S11: 4291265.414 | T11: 77.37865437
A12: Employers' and employees' contributions | B12: Szociális hozzájárulási adó | C12: 2370228.72 | D12: 1765808.548 | E12: 74.4995001 | F12: 2748100 | G12: 2748100 | H12: 2748100 | I12: 1959425.409 | J12: 71.30109562 | K12: Financial provisions of health security | L12: Egészségbiztosítás pénzbeli ellátásai | M12: 960947.5036 | N12: 708220.9499 | O12: 73.7002747 | P12: 1109199.6 | Q12: 1109199.6 | R12: 1109199.6 | S12: 787591.3485 | T12: 71.00537618
A13: Contributions of the insured people | B13: TB járulékok | C13: 3467157.566 | D13: 2553809.922 | E13: 73.65716364 | F13: 4127900 | G13: 4127900 | H13: 4127900 | I13: 2986607.995 | J13: 72.35175258 | K13: Sick benefit | L13: Táppénz | M13: 192101.2828 | N13: 140606.5582 | O13: 73.19397154 | P13: 225218.1 | Q13: 225218.1 | R13: 225218.1 | S13: 138434.3473 | T13: 61.46679476
A14: Other contributions | B14: Egyéb járulékok és hozzájárulások | C14: 117471.3375 | D14: 84367.63975 | E14: 71.81976602 | F14: 136100 | G14: 136100 | H14: 136100 | I14: 104371.7952 | J14: 76.68757916 | K14: Child-care pay expenditures | L14: GYED és örökbefogadói díj | M14: 289211.2546 | N14: 215163.4714 | O14: 74.39664536 | P14: 343113.5 | Q14: 343113.5 | R14: 343113.5 | S14: 245855.2906 | T14: 71.65421662
A15: Contribution to health service | B15: Késedelmi pótlék, bírság | C15: 10635.01627 | D15: 6970.678581 | E15: 65.54459722 | F15: 10000 | G15: 10000 | H15: 10000 | I15: 11200.78019 | J15: 112.0078019 | K15: Disability and rehabilitation provisions | L15: Rokkantsági, rehabilitációs ellátások | M15: 338165.1865 | N15: 249612.3189 | O15: 73.81372444 | P15: 374579.1 | Q15: 374579.1 | R15: 374579.1 | S15: 283870.2992 | T15: 75.7838062
A16: Penalty, fine | B16: Költségvetési hozzájárulások | C16: 1932762.9 | D16: 1507279.1 | E16: 77.98572189 | F16: 2333677.5 | G16: 2333677.5 | H16: 2333677.5 | I16: 1857304.2 | J16: 79.58701234 | K16: Other expenditures of Healt Securtity Fund | L16: EA egyéb pénzbeli ellátásai | M16: 141469.7797 | N16: 102838.6013 | O16: 72.69298186 | P16: 166288.9 | Q16: 166288.9 | R16: 166288.9 | S16: 119431.4115 | T16: 71.82163782
A17: Contributions from the central budget | B17: Egyéb és vagyongazdálkodási bevételek | C17: 233790.4381 | D17: 170473.5021 | E17: 72.91722601 | F17: 231704.9 | G17: 231704.9 | H17: 231704.9 | I17: 206041.8563 | J17: 88.92425507 | K17: Provisions in kind | L17: Természetbeni ellátások | M17: 2754141.141 | N17: 2022731.649 | O17: 73.44328216 | P17: 2898818.1 | Q17: 2898818.1 | R17: 2905118.1 | S17: 2159551.024 | T17: 74.33608377
A18: Revenues of property management and other revenues | K18: Curative and preventive provisions | L18: Gyógyító-megelőző ellátás | M18: 2203179.223 | N18: 1616879.107 | O18: 73.38845112 | P18: 2305629.7 | Q18: 2305629.7 | R18: 2311929.7 | S18: 1711817.29 | T18: 74.04279161
K19: Medicine subsidies | L19: Gyógyszertámogatás | M19: 440493.3611 | N19: 324962.6509 | O19: 73.77242874 | P19: 472008.8 | Q19: 472008.8 | R19: 472008.8 | S19: 370198.6061 | T19: 78.4304458
K20: Therapeutic aid subsidies | L20: Gyógyászati segédeszköz támogatás | M20: 82153.28538 | N20: 59310.26823 | O20: 72.19463952 | P20: 84477.7 | Q20: 84477.7 | R20: 84477.7 | S20: 55420.70731 | T20: 65.6039491
K21: Other in-kind provisions of the Health Security Fund | L21: EA egyéb természetbeni ellátásai | M21: 28315.27124 | N21: 21579.62281 | O21: 76.21195864 | P21: 32701.9 | Q21: 32701.9 | R21: 32701.9 | S21: 22114.42105 | T21: 67.62426968
K22: Provision of in-kind supplies | L22: Természetbeni ellátások céltartaléka | M22: 0 | N22: 0 | O22: - | P22: 4000 | Q22: 4000 | R22: 4000 | S22: 0 | T22: -
K23: Expenditures of property management and other expenditures | L23: Egyéb és vagyongazdálkodási kiadások | M23: 24770.00516 | N23: 17288.51099 | O23: 69.79615418 | P23: 26694.2 | Q23: 26694.2 | R23: 26694.2 | S23: 18142.98265 | T23: 67.96601005
K24: Contributions to the central budget | L24: Költségvetési befizetések | M24: 0 | N24: 0 | O24: - | P24: 0 | Q24: 0 | R24: 0 | S24: 0 | T24: -
A25: Total | B25: Összesen | C25: 8132045.978 | D25: 6088709.39 | E25: 74.87303203 | F25: 9587482.4 | G25: 9587482.4 | H25: 9587482.4 | I25: 7124952.035 | J25: 74.31515113 | L25: Összesen | M25: 8531370.846 | N25: 6255344.795 | O25: 73.32168426 | P25: 9580511.9 | Q25: 9580511.9 | R25: 9586811.9 | S25: 7256550.77 | T25: 75.69305464
A26: REVENUES OF SOCIAL SECURITY BUDGETARY INSTITUTIONS | B26: E.ALAP KÖLTSÉGVETÉSI SZERVÉNEK BEVÉTELEI | C26: 733.438455 | D26: 503.903847 | E26: 68.70431235 | F26: 419.8 | G26: 419.8 | H26: 847.598855 | I26: 1989.609938 | J26: 234.7348544 | K26: Total | L26: E.ALAP KÖLTSÉGVETÉSI SZERVÉNEK KIADÁSAI | M26: 7259.530586 | N26: 5149.326141 | O26: 70.9319436 | P26: 7390.3 | Q26: 7390.3 | R26: 8620.1776 | S26: 6070.453559 | T26: 70.42144421
A27: TOTAL REVENUES | B27: KÖLTSÉGVETÉSI BEVÉTELI FŐÖSSZEG | C27: 8132779.416 | D27: 6089213.294 | E27: 74.87247572 | F27: 9587902.2 | G27: 9587902.2 | H27: 9588329.999 | I27: 7126941.645 | J27: 74.32933207 | K27: EXPENDITURES OF SOCIAL SECURITY BUDGETARY INSTITUTIONS | L27: KÖLTSÉGVETÉSI KIADÁSI FŐÖSSZEG | M27: 8538630.377 | N27: 6260494.121 | O27: 73.3196525 | P27: 9587902.2 | Q27: 9587902.2 | R27: 9595432.078 | S27: 7262621.223 | T27: 75.68831882
A28: BALANCE OF SOCIAL SECURITY FUNDS | B28: TB ALAPOK KÖLTSÉGVETÉS SZERINTI EGYENLEGE | C28: -405850.9607 | D28: -171280.827 | E28: - | F28: 0 | G28: 1.862645149e-09 | H28: -7102.078745 | I28: -135679.5782 | J28: - | K28: TOTAL EXPENDITURES
L29: NEM TB ALAPOKAT TERHELŐ ELLÁTÁSOK KIADÁSAI | M29: 416.958276 | N29: 1030.05164 | O29: 247.0394999 | P29: 0 | Q29: 0 | R29: 0 | S29: -182.166119 | T29: -
K30: REIMBURSEMENTS OF PROVIONS NOT BURDENING THE SOCIAL SECURITY FUNDS | L30: Központi költségvetési forrásból | M30: 415.278192 | N30: 1027.059079 | O30: 247.3183275 | P30: 0 | Q30: 0 | R30: 0 | S30: -201.526939 | T30: -
K31: From the Central Budget | L31: Egyéb forrásból | M31: 1.680084 | N31: 2.992561 | O31: 178.119725 | P31: 0 | Q31: 0 | R31: 0 | S31: 19.36082 | T31: -
A32: BALANCE OF PROVIONS NOT BURDENING THE SOCIAL SECURITY FUNDS | B32: NEM TB ALAPOKAT TERHELŐ ELLÁTÁSOK EGYENLEGE | C32: -416.958276 | D32: -1030.05164 | E32: - | F32: 0 | G32: 0 | H32: 0 | I32: 182.166119 | J32: - | K32: TOTAL EXPENDITURES | L32: KIADÁSOK ÖSSZESEN | M32: 8539047.335 | N32: 6261524.173 | O32: 73.32813517 | P32: 9587902.2 | Q32: 9587902.2 | R32: 9595432.078 | S32: 7262439.057 | T32: 75.68642036
A34: ** In 2019, data are showed in the % of the 2019 closing balance. In 2020, data are showed in the % of the appropriation defined by government and ministerial decision. | B34: * a teljesítés %-a az előző évnél előzetes teljesítés = 100, a tárgyévnél a módosított előirányzat = 100

Sheet G2
B1: Magyar Államkincstár | S1: 9. Szám
C2: A társadalombiztosítás pénzügyi alapjai 2023. évi bevételeinek havi alakulása | S2: G/2 melléklet
S3: Millió forintban
A4: Hungarian State Treasury | S4: No. 9
C5: Monthly Revenues of Social Security Funds 2023 | S5: Appendix G/2
S6: Million HUF
B7: Bevételek | C7: Törvényi előirányzat | D7: Törvénnyel módosított előirányzat | E7: Módosított előirányzat | F7: I.hó | G7: II.hó | H7: III.hó | I7: IV.hó | J7: V.hó | K7: VI.hó | L7: VII.hó | M7: VIII.hó | N7: IX.hó | O7: X.hó | P7: XI.hó | Q7: XII.hó | R7: Teljesítés I-IX.hó | S7: Teljesítés %-a
A8: Revenues | C8: approved | D8: appropriation amended by Law | E8: appropriation amended by governmental and ministerial decision | F8: January | G8: February | H8: March | I8: April | J8: May | K8: June | L8: July | M8: August | N8: September | O8: October | P8: November | Q8: December | R8: facts January-September | S8: % of facts
A9: Contributions | B9: Járulékbevételek, hozzájárulások | C9: 7022100 | D9: 7022100 | E9: 7022100 | F9: 571615.2739 | G9: 526323.4829 | H9: 532233.4084 | I9: 585647.8707 | J9: 585086.6026 | K9: 564529.5835 | L9: 578734.0183 | M9: 567395.1921 | N9: 550040.5464 | R9: 5061605.979 | S9: 72.08108655
A10: Pension Security Fund | B10: ebből: Ny Alap | C10: 4474700 | D10: 4474700 | E10: 4474700 | F10: 363994.9372 | G10: 333987.5444 | H10: 338251.0916 | I10: 373283.7082 | J10: 372931.8402 | K10: 359187.747 | L10: 368195.9436 | M10: 360988.4166 | N10: 349155.1808 | R10: 3219976.41 | S10: 71.95960421
A11: Health Security Fund | B11: E Alap | C11: 2547400 | D11: 2547400 | E11: 2547400 | F11: 207620.3367 | G11: 192335.9385 | H11: 193982.3168 | I11: 212364.1625 | J11: 212154.7624 | K11: 205341.8365 | L11: 210538.0747 | M11: 206406.7756 | N11: 200885.3656 | R11: 1841629.569 | S11: 72.29447944
A12: Contributions from the central budget | B12: Költségvetési hozzájárulások | C12: 2333677.5 | D12: 2333677.5 | E12: 2333677.5 | F12: 146354.8 | G12: 599409 | H12: 158791.2 | I12: 158792.2 | J12: 158791.2 | K12: 158791.2 | L12: 158792.2 | M12: 158791.2 | N12: 158791.2 | R12: 1857304.2 | S12: 79.58701234
A13: Pension Security Fund | B13: ebből: Ny Alap | C13: 1071559 | D13: 1071559 | E13: 1071559 | F13: 31845.8 | G13: 495081 | H13: 54463.2 | I13: 54463.2 | J13: 54463.2 | K13: 54463.2 | L13: 54463.2 | M13: 54463.2 | N13: 54463.2 | R13: 908169.2 | S13: 84.75214151
A14: Health Security Fund | B14: E Alap | C14: 1262118.5 | D14: 1262118.5 | E14: 1262118.5 | F14: 114509 | G14: 104328 | H14: 104328 | I14: 104329 | J14: 104328 | K14: 104328 | L14: 104329 | M14: 104328 | N14: 104328 | R14: 949135 | S14: 75.20173423
A15: Other revenues | B15: Egyéb bevételek | C15: 231677.2 | D15: 231677.2 | E15: 231677.2 | F15: 22213.21963 | G15: 26392.60965 | H15: 21395.96288 | I15: 18288.59996 | J15: 22937.09908 | K15: 24684.00368 | L15: 22330.54172 | M15: 24032.77056 | N15: 23647.30256 | R15: 205922.1097 | S15: 88.88320029
A16: Pension Security Fund | B16: ebből: Ny Alap | C16: 8300 | D16: 8300 | E16: 8300 | F16: 2385.285583 | G16: 1927.931194 | H16: 1460.490409 | I16: 147.815698 | J16: 1173.509003 | K16: 634.331167 | L16: -86.507169 | M16: 651.542567 | N16: 509.769406 | R16: 8804.167858 | S16: 106.0743115
A17: Health Security Fund | B17: E Alap | C17: 223377.2 | D17: 223377.2 | E17: 223377.2 | F17: 19827.93405 | G17: 24464.67846 | H17: 19935.47247 | I17: 18140.78426 | J17: 21763.59008 | K17: 24049.67251 | L17: 22417.04889 | M17: 23381.22799 | N17: 23137.53316 | R17: 197117.9419 | S17: 88.24443222
A18: Revenues of property management | B18: Vagyongazdálkodás bevételei | C18: 27.7 | D18: 27.7 | E18: 27.7 | F18: 0 | G18: 13.978933 | H18: 2.503349 | I18: 8.000911 | J18: 9.49459 | K18: 9.690411 | L18: 14.660245 | M18: 53.579048 | N18: 7.839097 | R18: 119.746584 | S18: 432.2981372
A19: Pension Security Fund | B19: ebből: Ny Alap | C19: 14 | D19: 14 | E19: 14 | F19: 0 | G19: 7.843601 | H19: 1.887935 | I19: 4.984378 | J19: 5.82279 | K19: 6.110934 | L19: 8.929844 | M19: 30.883007 | N19: 4.997081 | R19: 71.45957 | S19: 510.4255
A20: Health Security Fund | B20: E Alap | C20: 13.7 | D20: 13.7 | E20: 13.7 | F20: 0 | G20: 6.135332 | H20: 0.615414 | I20: 3.016533 | J20: 3.6718 | K20: 3.579477 | L20: 5.730401 | M20: 22.696041 | N20: 2.842016 | R20: 48.287014 | S20: 352.4599562
A21: Revenues of Social Security budgetary institutions | B21: Tb. költségvetési szerv bevételei | C21: 419.8 | D21: 419.8 | E21: 847.598855 | F21: 43.236526 | G21: 65.083331 | H21: 56.989233 | I21: 37.756145 | J21: 65.13025 | K21: 61.780504 | L21: 39.86403 | M21: 32.345299 | N21: 1587.42462 | R21: 1989.609938 | S21: 234.7348544
A22: Pension Security Fund | B22: ebből: Ny Alap | C22: 0 | D22: 0 | E22: 0 | F22: 0 | G22: 0 | H22: 0 | I22: 0 | J22: 0 | K22: 0 | L22: 0 | M22: 0 | N22: 0 | R22: 0 | S22: -
A23: Health Security Fund | B23: E Alap | C23: 419.8 | D23: 419.8 | E23: 847.598855 | F23: 43.236526 | G23: 65.083331 | H23: 56.989233 | I23: 37.756145 | J23: 65.13025 | K23: 61.780504 | L23: 39.86403 | M23: 32.345299 | N23: 1587.42462 | R23: 1989.609938 | S23: 234.7348544
A24: SUBTOTAL OF BUDGETARY REVENUES | B24: KÖLTSÉGVETÉSI BEVÉTELI FŐÖSSZEG | C24: 9587902.2 | D24: 9587902.2 | E24: 9588329.999 | F24: 740226.5301 | G24: 1152204.155 | H24: 712480.0639 | I24: 762774.4277 | J24: 766889.5265 | K24: 748076.2581 | L24: 759911.2843 | M24: 750305.0871 | N24: 734074.3126 | R24: 7126941.645 | S24: 74.32933207
A25: Pension Security Fund | B25: ebből: Ny Alap | C25: 5554573 | D25: 5554573 | E25: 5554573 | F25: 398226.0228 | G25: 831004.3192 | H25: 394176.6699 | I25: 427899.7083 | J25: 428574.372 | K25: 414291.3891 | L25: 422581.5663 | M25: 416134.0421 | N25: 404133.1473 | R25: 4137021.237 | S25: 74.47955472
A26: Health Security Fund | B26: E Alap | C26: 4033329.2 | D26: 4033329.2 | E26: 4033756.999 | F26: 342000.5073 | G26: 321199.8356 | H26: 318303.3939 | I26: 334874.7195 | J26: 338315.1545 | K26: 333784.869 | L26: 337329.718 | M26: 334171.0449 | N26: 329941.1653 | R26: 2989920.408 | S26: 74.12247215
A27: BALANCE OF SOCIAL SECURITY FUNDS | B27: TB ALAPOK KÖLTSÉGVETÉS SZERINTI EGYENLEGE | C27: 0 | D27: 0 | E27: -7102.078745 | F27: 3624.704552 | G27: -54205.1706 | H27: -38969.45119 | I27: 12198.10936 | J27: 10005.54946 | K27: -10756.84918 | L27: 2417.320252 | M27: -17305.97536 | N27: -42687.81544 | R27: -135679.5782 | S27: -
A28: Pension Security Fund | B28: ebből: Ny Alap | C28: 0 | D28: 0 | E28: 0 | F28: -30182.34369 | G28: -21183.13975 | H28: -36233.01013 | I28: 205.476495 | J28: -3567.147482 | K28: -17370.92072 | L28: -7457.062232 | M28: -15391.30926 | N28: -28728.13451 | R28: -159907.5913 | S28: -
A29: Health Security Fund | B29: E Alap | C29: 0 | D29: 0 | E29: -7102.078745 | F29: 33807.04825 | G29: -33022.03085 | H29: -2736.44106 | I29: 11992.63286 | J29: 13572.69694 | K29: 6614.071544 | L29: 9874.382484 | M29: -1914.666099 | N29: -13959.68093 | R29: 24228.01314 | S29: -
A30: BALANCE OF PROVISIONS NOT AFFECTING THE SOCIAL SECURITY FUNDS | B30: NEM A TB ALAPOKBÓL FIN. ELLÁTÁSOK EGYENLEGE | C30: 0 | D30: 0 | E30: 0 | F30: 5.887709 | G30: -468.564713 | H30: 341.465906 | I30: 1348.325216 | J30: -2903.38886 | K30: 2874.854283 | L30: -24.112472 | M30: 114.844518 | N30: -1107.145468 | R30: 182.166119 | S30: -
A31: Pension Security Fund | B31: ebből: Ny Alap | C31: 0 | D31: 0 | E31: 0 | F31: -293.218939 | G31: -513.049052 | H31: 87.313738 | I31: 1217.304189 | J31: -2995.713289 | K31: 2781.107457 | L31: -254.69194 | M31: -183.46455 | N31: -32.090471 | R31: -186.502857 | S31: -
A32: Health Security Fund | B32: E Alap | C32: 0 | D32: 0 | E32: 0 | F32: 299.106648 | G32: 44.484339 | H32: 254.152168 | I32: 131.021027 | J32: 92.324429 | K32: 93.746826 | L32: 230.579468 | M32: 298.309068 | N32: -1075.054997 | R32: 368.668976 | S32: -
A33: BALANCE | B33: PÉNZFORGALMI EGYENLEG | C33: 0 | D33: 0 | E33: -7102.078745 | F33: 3630.592261 | G33: -54673.73532 | H33: -38627.98528 | I33: 13546.43457 | J33: 7102.160598 | K33: -7881.994898 | L33: 2393.20778 | M33: -17191.13084 | N33: -43794.96091 | R33: -135497.412 | S33: -
A34: Pension Security Fund | B34: ebből: Ny Alap | C34: 0 | D34: 0 | E34: 0 | F34: -30475.56263 | G34: -21696.18881 | H34: -36145.69639 | I34: 1422.780684 | J34: -6562.860771 | K34: -14589.81327 | L34: -7711.754172 | M34: -15574.77381 | N34: -28760.22499 | R34: -160094.0942 | S34: -
A35: Health Security Fund | B35: E Alap | C35: 0 | D35: 0 | E35: -7102.078745 | F35: 34106.15489 | G35: -32977.54651 | H35: -2482.288892 | I35: 12123.65389 | J35: 13665.02137 | K35: 6707.81837 | L35: 10104.96195 | M35: -1616.357031 | N35: -15034.73593 | R35: 24596.68211 | S35: -

Sheet G3
B1: Magyar Államkincstár | S1: 9. Szám
C2: A társadalombiztosítás pénzügyi alapjai 2023. évi kiadásainak havi alakulása | S2: G/3 melléklet
S3: Millió forintban
A4: Hungarian State Treasury | S4: No. 9
C5: Monthly Expenditures of Social Security Funds 2023 | S5: Appendix G/3
S6: Million HUF
B7: Kiadások | C7: Törvényi előirányzat | D7: Törvénnyel módosított előirányzat | E7: Módosított előirányzat | F7: I.hó | G7: II.hó | H7: III.hó | I7: IV.hó | J7: V.hó | K7: VI.hó | L7: VII.hó | M7: VIII.hó | N7: IX.hó | O7: X.hó | P7: XI.hó | Q7: XII.hó | R7: Teljesítés I-IX.hó | S7: Teljesítés %-a
A8: Expenditures | C8: approved | D8: appropriation amended by Law | E8: appropriation amended by governmental and ministerial decision | F8: January | G8: February | H8: March | I8: April | J8: May | K8: June | L8: July | M8: August | N8: September | O8: October | P8: November | Q8: December | R8: facts January-September | S8: % of facts
A9: Retirement allowances | B9: Nyugellátások | C9: 5545800 | D9: 5545800 | E9: 5545800 | F9: 427723.5295 | G9: 851560.3568 | H9: 429677.5238 | I9: 427272.0232 | J9: 431420.0319 | K9: 431007.0612 | L9: 429434.6163 | M9: 430915.2894 | N9: 432254.982 | R9: 4291265.414 | S9: 77.37865437
A10: Pension Security Fund | B10: ebből: Ny Alap | C10: 5545800 | D10: 5545800 | E10: 5545800 | F10: 427723.5295 | G10: 851560.3568 | H10: 429677.5238 | I10: 427272.0232 | J10: 431420.0319 | K10: 431007.0612 | L10: 429434.6163 | M10: 430915.2894 | N10: 432254.982 | R10: 4291265.414 | S10: 77.37865437
A11: Health Security Fund | B11: E Alap | C11: 0 | D11: 0 | E11: 0 | F11: 0 | G11: 0 | H11: 0 | I11: 0 | J11: 0 | K11: 0 | L11: 0 | M11: 0 | N11: 0 | R11: 0 | S11: -
A12: Financial provisions of health security | B12: Egészségbiztosítás pénzbeli ellátásai | C12: 1109199.6 | D12: 1109199.6 | E12: 1109199.6 | F12: 86397.19479 | G12: 112068.6467 | H12: 82159.30935 | I12: 83907.81789 | J12: 81395.15026 | K12: 85333.55655 | L12: 85087.57122 | M12: 81326.42541 | N12: 89915.67639 | R12: 787591.3485 | S12: 71.00537618
A13: Pregnancy and confinement benefit | B13: ebből : Csecsemőgondozási díj | C13: 154303.9 | D13: 154303.9 | E13: 154303.9 | F13: 12728.28148 | G13: 11331.73829 | H13: 13377.26112 | I13: 11281.24226 | J13: 13218.50535 | K13: 12589.89844 | L13: 12257.50012 | M13: 11875.52626 | N13: 11931.85897 | R13: 110591.8123 | S13: 71.6714304
A14: Sick benefit | B14: Táppénz | C14: 225218.1 | D14: 225218.1 | E14: 225218.1 | F14: 18664.24093 | G14: 14506.61501 | H14: 14363.83453 | I14: 14516.9419 | J14: 13693.79319 | K14: 15615.56789 | L14: 15874.18212 | M14: 14087.15488 | N14: 17112.01682 | R14: 138434.3473 | S14: 61.46679476
A15: Child-care pay expenditures | B15: GYED és örökbefogadói díj | C15: 343113.5 | D15: 343113.5 | E15: 343113.5 | F15: 25374.5911 | G15: 27471.63348 | H15: 24839.64687 | I15: 28493.60456 | J15: 25340.42631 | K15: 28113.11756 | L15: 27947.5777 | M15: 26382.69496 | N15: 31891.99802 | R15: 245855.2906 | S15: 71.65421662
A16: Other financial provisions of the Health Security Fund | B16: Rokkantsági, rehabilitációs ellátások | C16: 374579.1 | D16: 374579.1 | E16: 374579.1 | F16: 28726.2331 | G16: 57036.27941 | H16: 28675.28608 | I16: 28726.98944 | J16: 28254.35656 | K16: 28132.66869 | L16: 28122.25353 | M16: 28095.38185 | N16: 28100.85056 | R16: 283870.2992 | S16: 75.7838062
A17: Disability and rehabilitation provisions | B17: EA egyéb pénzbeli ellátásai | C17: 11985 | D17: 11985 | E17: 11985 | F17: 903.848173 | G17: 1722.380507 | H17: 903.280738 | I17: 889.039727 | J17: 888.068855 | K17: 882.303971 | L17: 886.057745 | M17: 885.667469 | N17: 878.952007 | R17: 8839.599192 | S17: 73.755521
A18: Provisions of health security in kind | B18: Egészségbiztosítás természetbeni ellátásai | C18: 2898818.1 | D18: 2898818.1 | E18: 2905118.1 | F18: 220829.1565 | G18: 239300.1843 | H18: 236912.1036 | I18: 237162.5082 | J18: 240602.0083 | K18: 240134.9921 | L18: 240481.3659 | M18: 251877.237 | N18: 252251.4686 | R18: 2159551.024 | S18: 74.33608377
A19: Curative and preventive provisions | B19: ebből: Gyógyító-megelőző ellátás | C19: 2305629.7 | D19: 2305629.7 | E19: 2311929.7 | F19: 179174.5562 | G19: 186662.2194 | H19: 191667.0961 | I19: 185154.879 | J19: 190292.5366 | K19: 186447.4391 | L19: 189876.9815 | M19: 202780.4908 | N19: 199761.0913 | R19: 1711817.29 | S19: 74.04279161
A20: Medicine subsidies | B20: Gyógyszertámogatás | C20: 472008.8 | D20: 472008.8 | E20: 472008.8 | F20: 34594.88487 | G20: 43046.07581 | H20: 36937.29896 | I20: 41681.48192 | J20: 41512.19281 | K20: 45286.74245 | L20: 41045.59489 | M20: 41589.14002 | N20: 44505.19433 | R20: 370198.6061 | S20: 78.4304458
A21: Therapeutic aid subsidies | B21: Gyógyászati segédeszköz támogatás | C21: 84477.7 | D21: 84477.7 | E21: 84477.7 | F21: 5615.280895 | G21: 6708.839957 | H21: 6256.471982 | I21: 6528.521691 | J21: 6097.402207 | K21: 6660.074363 | L21: 5991.443205 | M21: 5674.348353 | N21: 5888.324654 | R21: 55420.70731 | S21: 65.6039491
A22: Other in-kind provisions of the Health Security Fund | B22: EA egyéb természetbeni ellátásai | C22: 32701.9 | D22: 32701.9 | E22: 32701.9 | F22: 1444.434513 | G22: 2883.049189 | H22: 2051.236559 | I22: 3797.625511 | J22: 2699.876683 | K22: 1740.736221 | L22: 3567.346262 | M22: 1833.257797 | N22: 2096.858313 | R22: 22114.42105 | S22: 67.62426968
A23: Provision of in-kind supplies | B23: Természetbeni ellátások céltartaléka | C23: 4000 | D23: 4000 | E23: 4000 | F23: 0 | G23: 0 | H23: 0 | I23: 0 | J23: 0 | K23: 0 | L23: 0 | M23: 0 | N23: 0 | R23: 0 | S23: 0
A24: Other expenditures | B24: Egyéb kiadások | C24: 26678.4 | D24: 26678.4 | E24: 26678.4 | F24: 1214.707457 | G24: 2764.594374 | H24: 1837.173614 | I24: 1546.966505 | J24: 2782.03203 | K24: 1780.619881 | L24: 1784.305801 | M24: 2669.650989 | N24: 1760.278942 | R24: 18140.32959 | S24: 67.99631759
A25: Pension Security Fund | B25: ebből: Ny Alap | C25: 8770 | D25: 8770 | E25: 8770 | F25: 684.837025 | G25: 627.102153 | H25: 732.156281 | I25: 422.208622 | J25: 721.48754 | K25: 655.248612 | L25: 604.012175 | M25: 610.062047 | N25: 606.299831 | R25: 5663.414286 | S25: 64.57712983
A26: Health Security Fund | B26: E Alap | C26: 17908.4 | D26: 17908.4 | E26: 17908.4 | F26: 529.870432 | G26: 2137.492221 | H26: 1105.017333 | I26: 1124.757883 | J26: 2060.54449 | K26: 1125.371269 | L26: 1180.293626 | M26: 2059.588942 | N26: 1153.979111 | R26: 12476.91531 | S26: 69.67074282
A27: Expenditures of property management | B27: Vagyongazdálkodás kiadásai | C27: 15.8 | D27: 15.8 | E27: 15.8 | F27: 0 | G27: 0.300602 | H27: 0.647896 | I27: 0.296059 | J27: 0.004543 | K27: 0.428902 | L27: 0.005879 | M27: 0.30247 | N27: 0.666711 | R27: 2.653062 | S27: 16.79153165
A28: Pension Security Fund | B28: ebből: Ny Alap | C28: 3 | D28: 3 | E28: 3 | F28: 0 | G28: 0 | H28: 0 | I28: 0 | J28: 0 | K28: 0 | L28: 0 | M28: 0 | N28: 0 | R28: 0 | S28: 0
A29: Health Security Fund | B29: E Alap | C29: 12.8 | D29: 12.8 | E29: 12.8 | F29: 0 | G29: 0.300602 | H29: 0.647896 | I29: 0.296059 | J29: 0.004543 | K29: 0.428902 | L29: 0.005879 | M29: 0.30247 | N29: 0.666711 | R29: 2.653062 | S29: 20.72704687
A30: Contributions to the central budget | B30: Költségvetési befizetések | C30: 0 | D30: 0 | E30: 0 | F30: 0 | G30: 0 | H30: 0 | I30: 0 | J30: 0 | K30: 0 | L30: 0 | M30: 0 | N30: 0 | R30: 0 | S30: -
A31: Pension Security Fund | B31: ebből: Ny Alap | C31: 0 | D31: 0 | E31: 0 | F31: 0 | G31: 0 | H31: 0 | I31: 0 | J31: 0 | K31: 0 | L31: 0 | M31: 0 | N31: 0 | R31: 0 | S31: -
A32: Health Security Fund | B32: E Alap | C32: 0 | D32: 0 | E32: 0 | F32: 0 | G32: 0 | H32: 0 | I32: 0 | J32: 0 | K32: 0 | L32: 0 | M32: 0 | N32: 0 | R32: 0 | S32: -
A33: Expenditures of Social Security budgetary institution | B33: Tb. költségvetési szerv kiadásai | C33: 7390.3 | D33: 7390.3 | E33: 8620.1776 | F33: 437.237346 | G33: 715.242638 | H33: 862.756821 | I33: 686.706588 | J33: 684.750012 | K33: 576.448616 | L33: 706.098929 | M33: 822.157168 | N33: 579.055441 | R33: 6070.453559 | S33: 70.42144421
A34: Pension Security Fund | B34: ebből: Ny Alap | C34: 0 | D34: 0 | E34: 0 | F34: 0 | G34: 0 | H34: 0 | I34: 0 | J34: 0 | K34: 0 | L34: 0 | M34: 0 | N34: 0 | R34: 0 | S34: -
A35: Health Security Fund | B35: E Alap | C35: 7390.3 | D35: 7390.3 | E35: 8620.1776 | F35: 437.237346 | G35: 715.242638 | H35: 862.756821 | I35: 686.706588 | J35: 684.750012 | K35: 576.448616 | L35: 706.098929 | M35: 822.157168 | N35: 579.055441 | R35: 6070.453559 | S35: 70.42144421
A36: SUBTOTAL OF BUDGETARY EXPENDITURES | B36: KÖLTSÉGVETÉSI KIADÁSI FŐÖSSZEG | C36: 9587902.2 | D36: 9587902.2 | E36: 9595432.078 | F36: 736601.8255 | G36: 1206409.325 | H36: 751449.5151 | I36: 750576.3184 | J36: 756883.977 | K36: 758833.1073 | L36: 757493.964 | M36: 767611.0624 | N36: 776762.1281 | R36: 7262621.223 | S36: 75.68831882
A37: Pension Security Fund | B37: ebből: Ny Alap | C37: 5554573 | D37: 5554573 | E37: 5554573 | F37: 428408.3665 | G37: 852187.459 | H37: 430409.68 | I37: 427694.2318 | J37: 432141.5195 | K37: 431662.3098 | L37: 430038.6285 | M37: 431525.3514 | N37: 432861.2818 | R37: 4296928.828 | S37: 77.35840052
A38: Health Security Fund | B38: E Alap | C38: 4033329.2 | D38: 4033329.2 | E38: 4040859.078 | F38: 308193.459 | G38: 354221.8665 | H38: 321039.835 | I38: 322882.0866 | J38: 324742.4576 | K38: 327170.7975 | L38: 327455.3355 | M38: 336085.711 | N38: 343900.8463 | R38: 2965692.395 | S38: 73.39262117
A39: Provisions financed from the Central Budget | B39: Központi költségvetésből finanszírozott ellátások | C39: 0 | D39: 0 | E39: 0 | F39: -11.031213 | G39: 467.991425 | H39: -338.638093 | I39: -1358.769288 | J39: 2899.909717 | K39: -2878.706912 | L39: 24.430548 | M39: -116.145506 | N39: 1109.432383 | R39: -201.526939 | S39: -
A40: Pension Security Fund | B40: ebből: Ny Alap | C40: 0 | D40: 0 | E40: 0 | F40: 288.075435 | G40: 512.475764 | H40: -84.485925 | I40: -1227.748929 | J40: 2992.234814 | K40: -2784.960086 | L40: 255.010016 | M40: 182.163562 | N40: 34.377386 | R40: 167.142037 | S40: -
A41: Health Security Fund | B41: E Alap | C41: 0 | D41: 0 | E41: 0 | F41: -299.106648 | G41: -44.484339 | H41: -254.152168 | I41: -131.020359 | J41: -92.325097 | K41: -93.746826 | L41: -230.579468 | M41: -298.309068 | N41: 1075.054997 | R41: -368.668976 | S41: -
A42: Provisions financed from other resources | B42: Egyéb forrásból finanszírozott ellátások | C42: 0 | D42: 0 | E42: 0 | F42: 5.143504 | G42: 0.573288 | H42: -2.827813 | I42: 10.444072 | J42: 3.479143 | K42: 3.852629 | L42: -0.318076 | M42: 1.300988 | N42: -2.286915 | R42: 19.36082 | S42: -
A43: Pension Security Fund | B43: ebből: Ny Alap | C43: 0 | D43: 0 | E43: 0 | F43: 5.143504 | G43: 0.573288 | H43: -2.827813 | I43: 10.44474 | J43: 3.478475 | K43: 3.852629 | L43: -0.318076 | M43: 1.300988 | N43: -2.286915 | R43: 19.36082 | S43: -
A44: Health Security Fund | B44: E Alap | C44: 0 | D44: 0 | E44: 0 | F44: 0 | G44: 0 | H44: 0 | I44: -0.000668 | J44: 0.000668 | K44: 0 | L44: 0 | M44: 0 | N44: 0 | R44: 0 | S44: -
A45: EXPENDITURES OF PROVIONS NOT AFFECTING THE SOCIAL SECURITY FUNDS | B45: NEM A TB ALAPOKBÓL FIN. ELLÁTÁSOK KIADÁSAI | C45: 0 | D45: 0 | E45: 0 | F45: -5.887709 | G45: 468.564713 | H45: -341.465906 | I45: -1348.325216 | J45: 2903.38886 | K45: -2874.854283 | L45: 24.112472 | M45: -114.844518 | N45: 1107.145468 | R45: -182.166119 | S45: -
A46: Pension Security Fund | B46: ebből: Ny Alap | C46: 0 | D46: 0 | E46: 0 | F46: 293.218939 | G46: 513.049052 | H46: -87.313738 | I46: -1217.304189 | J46: 2995.713289 | K46: -2781.107457 | L46: 254.69194 | M46: 183.46455 | N46: 32.090471 | R46: 186.502857 | S46: -
A47: Health Security Fund | B47: E Alap | C47: 0 | D47: 0 | E47: 0 | F47: -299.106648 | G47: -44.484339 | H47: -254.152168 | I47: -131.021027 | J47: -92.324429 | K47: -93.746826 | L47: -230.579468 | M47: -298.309068 | N47: 1075.054997 | R47: -368.668976 | S47: -
A48: Total expenditures | B48: Kiadások mindösszesen | C48: 9587902.2 | D48: 9587902.2 | E48: 9595432.078 | F48: 736595.9378 | G48: 1206877.89 | H48: 751108.0491 | I48: 749227.9932 | J48: 759787.3659 | K48: 755958.253 | L48: 757518.0765 | M48: 767496.2179 | N48: 777869.2736 | R48: 7262439.057 | S48: 75.68642036
A49: Pension Security Fund | B49: ebből: Ny Alap | C49: 5554573 | D49: 5554573 | E49: 5554573 | F49: 428701.5855 | G49: 852700.508 | H49: 430322.3663 | I49: 426476.9276 | J49: 435137.2328 | K49: 428881.2024 | L49: 430293.3204 | M49: 431708.816 | N49: 432893.3723 | R49: 4297115.331 | S49: 77.36175816
A50: Health Security Fund | B50: E Alap | C50: 4033329.2 | D50: 4033329.2 | E50: 4040859.078 | F50: 307894.3524 | G50: 354177.3821 | H50: 320785.6828 | I50: 322751.0656 | J50: 324650.1331 | K50: 327077.0506 | L50: 327224.756 | M50: 335787.4019 | N50: 344975.9013 | R50: 2965323.726 | S50: 73.38349764

Sheet G2_kum
B1: Magyar Államkincstár | Q1: 9. Szám
C2: A társadalombiztosítás pénzügyi alapjai 2023. évi bevételeinek havi alakulása
Q3: Millió forintban
A4: Hungarian State Treasury | Q4: No. 9
C5: Monthly Revenues of Social Security Funds 2023
Q6: Million HUF
B7: Bevételek | C7: Törvényi előirányzat | D7: Törvénnyel módosított előirányzat | E7: Módosított előirányzat | F7: I.hó | G7: I-II.hó | H7: I-III.hó | I7: I-IV.hó | J7: I-V.hó | K7: I-VI.hó | L7: I-VII.hó | M7: I-VIII.hó | N7: I-IX.hó | O7: I-X.hó | P7: I-XI.hó | Q7: I-XII.hó
A8: Revenues | C8: approved | D8: appropriation amended by Law | E8: appropriation amended by governmental and ministerial decision | F8: January | G8: January-February | H8: January-March | I8: January-April | J8: January-May | K8: January-June | L8: January-July | M8: January-August | N8: January-September | O8: January-October | P8: January-November | Q8: January-December
A9: Contributions | B9: Járulékbevételek, hozzájárulások | C9: 5639900 | D9: 7022100 | E9: 7022100 | F9: 571615.2739 | G9: 1097938.757 | H9: 1630172.165 | I9: 2215820.036 | J9: 2800906.639 | K9: 3365436.222 | L9: 3944170.24 | M9: 4511565.433 | N9: 5061605.979
A10: Pension Security Fund | B10: ebből: Ny Alap | C10: 3609900 | D10: 4474700 | E10: 4474700 | F10: 363994.9372 | G10: 697982.4817 | H10: 1036233.573 | I10: 1409517.281 | J10: 1782449.122 | K10: 2141636.869 | L10: 2509832.812 | M10: 2870821.229 | N10: 3219976.41
A11: Health Security Fund | B11: E Alap | C11: 2030000 | D11: 2547400 | E11: 2547400 | F11: 207620.3367 | G11: 399956.2752 | H11: 593938.592 | I11: 806302.7546 | J11: 1018457.517 | K11: 1223799.353 | L11: 1434337.428 | M11: 1640744.204 | N11: 1841629.569
A12: Contributions from the central budget | B12: Költségvetési hozzájárulások | C12: 1790733.8 | D12: 2333677.5 | E12: 2333677.5 | F12: 146354.8 | G12: 745763.8 | H12: 904555 | I12: 1063347.2 | J12: 1222138.4 | K12: 1380929.6 | L12: 1539721.8 | M12: 1698513 | N12: 1857304.2
A13: Pension Security Fund | B13: ebből: Ny Alap | C13: 554407.2 | D13: 1071559 | E13: 1071559 | F13: 31845.8 | G13: 526926.8 | H13: 581390 | I13: 635853.2 | J13: 690316.4 | K13: 744779.6 | L13: 799242.8 | M13: 853706 | N13: 908169.2
A14: Health Security Fund | B14: E Alap | C14: 1236326.6 | D14: 1262118.5 | E14: 1262118.5 | F14: 114509 | G14: 218837 | H14: 323165 | I14: 427494 | J14: 531822 | K14: 636150 | L14: 740479 | M14: 844807 | N14: 949135
A15: Other revenues | B15: Egyéb bevételek | C15: 192632 | D15: 231677.2 | E15: 231677.2 | F15: 22213.21963 | G15: 48605.82928 | H15: 70001.79216 | I15: 88290.39212 | J15: 111227.4912 | K15: 135911.4949 | L15: 158242.0366 | M15: 182274.8072 | N15: 205922.1097
A16: Pension Security Fund | B16: ebből: Ny Alap | C16: 5671.6 | D16: 8300 | E16: 8300 | F16: 2385.285583 | G16: 4313.216777 | H16: 5773.707186 | I16: 5921.522884 | J16: 7095.031887 | K16: 7729.363054 | L16: 7642.855885 | M16: 8294.398452 | N16: 8804.167858
A17: Health Security Fund | B17: E Alap | C17: 186960.4 | D17: 223377.2 | E17: 223377.2 | F17: 19827.93405 | G17: 44292.61251 | H17: 64228.08497 | I17: 82368.86923 | J17: 104132.4593 | K17: 128182.1318 | L17: 150599.1807 | M17: 173980.4087 | N17: 197117.9419
A18: Revenues of property management | B18: Vagyongazdálkodás bevételei | C18: 0 | D18: 27.7 | E18: 27.7 | F18: 0 | G18: 13.978933 | H18: 16.482282 | I18: 24.483193 | J18: 33.977783 | K18: 43.668194 | L18: 58.328439 | M18: 111.907487 | N18: 119.746584
A19: Pension Security Fund | B19: ebből: Ny Alap | C19: 0 | D19: 14 | E19: 14 | F19: 0 | G19: 7.843601 | H19: 9.731536 | I19: 14.715914 | J19: 20.538704 | K19: 26.649638 | L19: 35.579482 | M19: 66.462489 | N19: 71.45957
A20: Health Security Fund | B20: E Alap | C20: 0 | D20: 13.7 | E20: 13.7 | F20: 0 | G20: 6.135332 | H20: 6.750746 | I20: 9.767279 | J20: 13.439079 | K20: 17.018556 | L20: 22.748957 | M20: 45.444998 | N20: 48.287014
A21: Revenues of Social Security budgetary institutions | B21: Tb. költségvetési szerv bevételei | C21: 419.8 | D21: 419.8 | E21: 847.598855 | F21: 43.236526 | G21: 108.319857 | H21: 165.30909 | I21: 203.065235 | J21: 268.195485 | K21: 329.975989 | L21: 369.840019 | M21: 402.185318 | N21: 1989.609938
A22: Pension Security Fund | B22: ebből: Ny Alap | C22: 0 | D22: 0 | E22: 0 | F22: 0 | G22: 0 | H22: 0 | I22: 0 | J22: 0 | K22: 0 | L22: 0 | M22: 0 | N22: 0
A23: Health Security Fund | B23: E Alap | C23: 419.8 | D23: 419.8 | E23: 847.598855 | F23: 43.236526 | G23: 108.319857 | H23: 165.30909 | I23: 203.065235 | J23: 268.195485 | K23: 329.975989 | L23: 369.840019 | M23: 402.185318 | N23: 1989.609938
A24: SUBTOTAL OF BUDGETARY REVENUES | B24: KÖLTSÉGVETÉSI BEVÉTELI FŐÖSSZEG | C24: 7623685.6 | D24: 9587902.2 | E24: 9588329.999 | F24: 740226.5301 | G24: 1892430.685 | H24: 2604910.749 | I24: 3367685.177 | J24: 4134574.703 | K24: 4882650.961 | L24: 5642562.245 | M24: 6392867.333 | N24: 7126941.645
A25: Pension Security Fund | B25: ebből: Ny Alap | C25: 4169978.8 | D25: 5554573 | E25: 5554573 | F25: 398226.0228 | G25: 1229230.342 | H25: 1623407.012 | I25: 2051306.72 | J25: 2479881.092 | K25: 2894172.481 | L25: 3316754.048 | M25: 3732888.09 | N25: 4137021.237
A26: Health Security Fund | B26: E Alap | C26: 3453706.8 | D26: 4033329.2 | E26: 4033756.999 | F26: 342000.5073 | G26: 663200.3429 | H26: 981503.7369 | I26: 1316378.456 | J26: 1654693.611 | K26: 1988478.48 | L26: 2325808.198 | M26: 2659979.243 | N26: 2989920.408
A27: BALANCE OF SOCIAL SECURITY FUNDS | B27: TB ALAPOK KÖLTSÉGVETÉS SZERINTI EGYENLEGE | C27: 7174118.3 | D27: 0 | E27: -7102.078745 | F27: 3624.704552 | G27: -50580.46605 | H27: -89549.91724 | I27: -77351.80788 | J27: -67346.25843 | K27: -78103.10761 | L27: -75685.78735 | M27: -92991.76271 | N27: -135679.5782
A28: Pension Security Fund | B28: ebből: Ny Alap | C28: 4089676.8 | D28: 0 | E28: 0 | F28: -30182.34369 | G28: -51365.48345 | H28: -87598.49358 | I28: -87393.01708 | J28: -90960.16457 | K28: -108331.0853 | L28: -115788.1475 | M28: -131179.4568 | N28: -159907.5913
A29: Health Security Fund | B29: E Alap | C29: 3416068.3 | D29: 0 | E29: -7102.078745 | F29: 33807.04825 | G29: 785.017396 | H29: -1951.423664 | I29: 10041.2092 | J29: 23613.90614 | K29: 30227.97768 | L29: 40102.36017 | M29: 38187.69407 | N29: 24228.01314
A30: BALANCE OF PROVISIONS NOT AFFECTING THE SOCIAL SECURITY FUNDS | B30: NEM A TB ALAPOKBÓL FIN. ELLÁTÁSOK EGYENLEGE | C30: 0 | D30: 0 | E30: 0 | F30: 5.887709 | G30: -462.677004 | H30: -121.211098 | I30: 1227.114118 | J30: -1676.274742 | K30: 1198.579541 | L30: 1174.467069 | M30: 1289.311587 | N30: 182.166119
A31: Pension Security Fund | B31: ebből: Ny Alap | C31: 0 | D31: 0 | E31: 0 | F31: -293.218939 | G31: -806.267991 | H31: -718.954253 | I31: 498.349936 | J31: -2497.363353 | K31: 283.744104 | L31: 29.052164 | M31: -154.412386 | N31: -186.502857
A32: Health Security Fund | B32: E Alap | C32: 0 | D32: 0 | E32: 0 | F32: 299.106648 | G32: 343.590987 | H32: 597.743155 | I32: 728.764182 | J32: 821.088611 | K32: 914.835437 | L32: 1145.414905 | M32: 1443.723973 | N32: 368.668976
A33: BALANCE | B33: PÉNZFORGALMI EGYENLEG | C33: 7623685.6 | D33: 0 | E33: -7102.078745 | F33: 3630.592261 | G33: -51043.14306 | H33: -89671.12834 | I33: -76124.69377 | J33: -69022.53317 | K33: -76904.52807 | L33: -74511.32028 | M33: -91702.45112 | N33: -135497.412
A34: Pension Security Fund | B34: ebből: Ny Alap | C34: 4163003.8 | D34: 0 | E34: 0 | F34: -30475.56263 | G34: -52171.75144 | H34: -88317.44783 | I34: -86894.66715 | J34: -93457.52792 | K34: -108047.3412 | L34: -115759.0954 | M34: -131333.8692 | N34: -160094.0942
A35: Health Security Fund | B35: E Alap | C35: 3453706.8 | D35: 0 | E35: -7102.078745 | F35: 34106.15489 | G35: 1128.608383 | H35: -1353.680509 | I35: 10769.97338 | J35: 24434.99475 | K35: 31142.81312 | L35: 41247.77507 | M35: 39631.41804 | N35: 24596.68211

Sheet G3_kum
B1: Magyar Államkincstár | Q1: 9. Szám
C2: A társadalombiztosítás pénzügyi alapjai 2023. évi kiadásainak havi alakulása
Q3: Millió forintban
A4: Hungarian State Treasury | Q4: No. 9
C5: Monthly Expenditures of Social Security Funds 2023
Q6: Million HUF
B7: Kiadások | C7: Törvényi előirányzat | D7: Törvénnyel módosított előirányzat | E7: Módosított előirányzat | F7: I.hó | G7: I-II.hó | H7: I-III.hó | I7: I-IV.hó | J7: I-V.hó | K7: I-VI.hó | L7: I-VII.hó | M7: I-VIII.hó | N7: I-IX.hó | O7: I-X.hó | P7: I-XI.hó | Q7: I-XII.hó
A8: Expenditures | C8: approved | D8: appropriation amended by Law | E8: appropriation amended by governmental and ministerial decision | F8: January | G8: January-February | H8: January-March | I8: January-April | J8: January-May | K8: January-June | L8: January-July | M8: January-August | N8: January-September | O8: January-October | P8: January-November | Q8: January-December
A9: Retirement allowances | B9: Nyugellátások | C9: 4162660 | D9: 5545800 | E9: 5545800 | F9: 427723.5295 | G9: 1279283.886 | H9: 1708961.41 | I9: 2136233.433 | J9: 2567653.465 | K9: 2998660.526 | L9: 3428095.143 | M9: 3859010.432 | N9: 4291265.414
A10: Pension Security Fund | B10: ebből: Ny Alap | C10: 4162660 | D10: 5545800 | E10: 5545800 | F10: 427723.5295 | G10: 1279283.886 | H10: 1708961.41 | I10: 2136233.433 | J10: 2567653.465 | K10: 2998660.526 | L10: 3428095.143 | M10: 3859010.432 | N10: 4291265.414
A11: Health Security Fund | B11: E Alap | C11: 0 | D11: 0 | E11: 0 | F11: 0 | G11: 0 | H11: 0 | I11: 0 | J11: 0 | K11: 0 | L11: 0 | M11: 0 | N11: 0
A12: Financial provisions of health security | B12: Egészségbiztosítás pénzbeli ellátásai | C12: 887390.6 | D12: 1109199.6 | E12: 1109199.6 | F12: 86397.19479 | G12: 198465.8415 | H12: 280625.1508 | I12: 364532.9687 | J12: 445928.119 | K12: 531261.6755 | L12: 616349.2467 | M12: 697675.6721 | N12: 787591.3485
A13: Pregnancy and confinement benefit | B13: ebből : Csecsemőgondozási díj | C13: 0 | D13: 154303.9 | E13: 154303.9 | F13: 12728.28148 | G13: 24060.01977 | H13: 37437.28089 | I13: 48718.52315 | J13: 61937.02851 | K13: 74526.92694 | L13: 86784.42706 | M13: 98659.95332 | N13: 110591.8123
A14: Sick benefit | B14: Táppénz | C14: 181865.5 | D14: 225218.1 | E14: 225218.1 | F14: 18664.24093 | G14: 33170.85595 | H14: 47534.69048 | I14: 62051.63238 | J14: 75745.42557 | K14: 91360.99346 | L14: 107235.1756 | M14: 121322.3305 | N14: 138434.3473
A15: Child-care pay expenditures | B15: GYED és örökbefogadói díj | C15: 266719.3 | D15: 343113.5 | E15: 343113.5 | F15: 25374.5911 | G15: 52846.22458 | H15: 77685.87145 | I15: 106179.476 | J15: 131519.9023 | K15: 159633.0199 | L15: 187580.5976 | M15: 213963.2925 | N15: 245855.2906
A16: Disability and rehabilitation provisions | B16: Rokkantsági, rehabilitációs ellátások | C16: 301346.2 | D16: 374579.1 | E16: 374579.1 | F16: 28726.2331 | G16: 85762.51251 | H16: 114437.7986 | I16: 143164.788 | J16: 171419.1446 | K16: 199551.8133 | L16: 227674.0668 | M16: 255769.4487 | N16: 283870.2992
A17: Other financial provisions of the Health Security Fund | B17: EA egyéb pénzbeli ellátásai | C17: 137459.6 | D17: 11985 | E17: 11985 | F17: 903.848173 | G17: 2626.22868 | H17: 3529.509418 | I17: 4418.549145 | J17: 5306.618 | K17: 6188.921971 | L17: 7074.979716 | M17: 7960.647185 | N17: 8839.599192
A18: Provisions of health security in kind | B18: Egészségbiztosítás természetbeni ellátásai | C18: 2690476.8 | D18: 2898818.1 | E18: 2905118.1 | F18: 220829.1565 | G18: 460129.3408 | H18: 697041.4444 | I18: 934203.9526 | J18: 1174805.961 | K18: 1414940.953 | L18: 1655422.319 | M18: 1907299.556 | N18: 2159551.024
A19: Curative and preventive provisions | B19: ebből: Gyógyító-megelőző ellátás | C19: 2122969 | D19: 2305629.7 | E19: 2311929.7 | F19: 179174.5562 | G19: 365836.7756 | H19: 557503.8717 | I19: 742658.7507 | J19: 932951.2873 | K19: 1119398.726 | L19: 1309275.708 | M19: 1512056.199 | N19: 1711817.29
A20: Medicine subsidies | B20: Gyógyszertámogatás | C20: 449567.3 | D20: 472008.8 | E20: 472008.8 | F20: 34594.88487 | G20: 77640.96068 | H20: 114578.2596 | I20: 156259.7416 | J20: 197771.9344 | K20: 243058.6768 | L20: 284104.2717 | M20: 325693.4117 | N20: 370198.6061
A21: Therapeutic aid subsidies | B21: Gyógyászati segédeszköz támogatás | C21: 80302 | D21: 84477.7 | E21: 84477.7 | F21: 5615.280895 | G21: 12324.12085 | H21: 18580.59283 | I21: 25109.11452 | J21: 31206.51673 | K21: 37866.59109 | L21: 43858.0343 | M21: 49532.38265 | N21: 55420.70731
A22: Other in-kind provisions of the Health Security Fund | B22: EA egyéb természetbeni ellátásai | C22: 37638.5 | D22: 32701.9 | E22: 32701.9 | F22: 1444.434513 | G22: 4327.483702 | H22: 6378.720261 | I22: 10176.34577 | J22: 12876.22245 | K22: 14616.95868 | L22: 18184.30494 | M22: 20017.56273 | N22: 22114.42105
A23: Provision of in-kind supplies | B23: Természetbeni ellátások céltartaléka | C23: 0 | D23: 4000 | E23: 4000 | F23: 0 | G23: 0 | H23: 0 | I23: 0 | J23: 0 | K23: 0 | L23: 0 | M23: 0 | N23: 0
A24: Other expenditures | B24: Egyéb kiadások | C24: 22980 | D24: 26678.4 | E24: 26678.4 | F24: 1214.707457 | G24: 3979.301831 | H24: 5816.475445 | I24: 7363.44195 | J24: 10145.47398 | K24: 11926.09386 | L24: 13710.39966 | M24: 16380.05065 | N24: 18140.32959
A25: Pension Security Fund | B25: ebből: Ny Alap | C25: 7315.8 | D25: 8770 | E25: 8770 | F25: 684.837025 | G25: 1311.939178 | H25: 2044.095459 | I25: 2466.304081 | J25: 3187.791621 | K25: 3843.040233 | L25: 4447.052408 | M25: 5057.114455 | N25: 5663.414286
A26: Health Security Fund | B26: E Alap | C26: 15664.2 | D26: 17908.4 | E26: 17908.4 | F26: 529.870432 | G26: 2667.362653 | H26: 3772.379986 | I26: 4897.137869 | J26: 6957.682359 | K26: 8083.053628 | L26: 9263.347254 | M26: 11322.9362 | N26: 12476.91531
A27: Expenditures of property management | B27: Vagyongazdálkodás kiadásai | C27: 3 | D27: 15.8 | E27: 15.8 | F27: 0 | G27: 0.300602 | H27: 0.948498 | I27: 1.244557 | J27: 1.2491 | K27: 1.678002 | L27: 1.683881 | M27: 1.986351 | N27: 2.653062
A28: Pension Security Fund | B28: ebből: Ny Alap | C28: 3 | D28: 3 | E28: 3 | F28: 0 | G28: 0 | H28: 0 | I28: 0 | J28: 0 | K28: 0 | L28: 0 | M28: 0 | N28: 0
A29: Health Security Fund | B29: E Alap | C29: 0 | D29: 12.8 | E29: 12.8 | F29: 0 | G29: 0.300602 | H29: 0.948498 | I29: 1.244557 | J29: 1.2491 | K29: 1.678002 | L29: 1.683881 | M29: 1.986351 | N29: 2.653062
A30: Contributions to the central budget | B30: Költségvetési befizetések | C30: 0 | D30: 0 | E30: 0 | F30: 0 | G30: 0 | H30: 0 | I30: 0 | J30: 0 | K30: 0 | L30: 0 | M30: 0 | N30: 0
A31: Pension Security Fund | B31: ebből: Ny Alap | C31: 0 | D31: 0 | E31: 0 | F31: 0 | G31: 0 | H31: 0 | I31: 0 | J31: 0 | K31: 0 | L31: 0 | M31: 0 | N31: 0
A32: Health Security Fund | B32: E Alap | C32: 0 | D32: 0 | E32: 0 | F32: 0 | G32: 0 | H32: 0 | I32: 0 | J32: 0 | K32: 0 | L32: 0 | M32: 0 | N32: 0
A33: Expenditures of Social Security budgetary institution | B33: Tb. költségvetési szerv kiadásai | C33: 6975 | D33: 7390.3 | E33: 8620.1776 | F33: 437.237346 | G33: 1152.479984 | H33: 2015.236805 | I33: 2701.943393 | J33: 3386.693405 | K33: 3963.142021 | L33: 4669.24095 | M33: 5491.398118 | N33: 6070.453559
A34: Pension Security Fund | B34: ebből: Ny Alap | C34: 0 | D34: 0 | E34: 0 | F34: 0 | G34: 0 | H34: 0 | I34: 0 | J34: 0 | K34: 0 | L34: 0 | M34: 0 | N34: 0
A35: Health Security Fund | B35: E Alap | C35: 6975 | D35: 7390.3 | E35: 8620.1776 | F35: 437.237346 | G35: 1152.479984 | H35: 2015.236805 | I35: 2701.943393 | J35: 3386.693405 | K35: 3963.142021 | L35: 4669.24095 | M35: 5491.398118 | N35: 6070.453559
A36: SUBTOTAL OF BUDGETARY EXPENDITURES | B36: KÖLTSÉGVETÉSI KIADÁSI FŐÖSSZEG | C36: 7770485.4 | D36: 9587902.2 | E36: 9595432.078 | F36: 736601.8255 | G36: 1943011.151 | H36: 2694460.666 | I36: 3445036.984 | J36: 4201920.961 | K36: 4960754.069 | L36: 5718248.033 | M36: 6485859.095 | N36: 7262621.223
A37: Pension Security Fund | B37: ebből: Ny Alap | C37: 4169978.8 | D37: 5554573 | E37: 5554573 | F37: 428408.3665 | G37: 1280595.825 | H37: 1711005.506 | I37: 2138699.737 | J37: 2570841.257 | K37: 3002503.567 | L37: 3432542.195 | M37: 3864067.547 | N37: 4296928.828
A38: Health Security Fund | B38: E Alap | C38: 3600506.6 | D38: 4033329.2 | E38: 4040859.078 | F38: 308193.459 | G38: 662415.3255 | H38: 983455.1605 | I38: 1306337.247 | J38: 1631079.705 | K38: 1958250.502 | L38: 2285705.838 | M38: 2621791.549 | N38: 2965692.395
A39: Provisions financed from the Central Budget | B39: Központi költségvetésből finanszírozott ellátások | C39: 0 | D39: 0 | E39: 0 | F39: -11.031213 | G39: 456.960212 | H39: 118.322119 | I39: -1240.447169 | J39: 1659.462548 | K39: -1219.244364 | L39: -1194.813816 | M39: -1310.959322 | N39: -201.526939
A40: Pension Security Fund | B40: ebből: Ny Alap | C40: 0 | D40: 0 | E40: 0 | F40: 288.075435 | G40: 800.551199 | H40: 716.065274 | I40: -511.683655 | J40: 2480.551159 | K40: -304.408927 | L40: -49.398911 | M40: 132.764651 | N40: 167.142037
A41: Health Security Fund | B41: E Alap | C41: 0 | D41: 0 | E41: 0 | F41: -299.106648 | G41: -343.590987 | H41: -597.743155 | I41: -728.763514 | J41: -821.088611 | K41: -914.835437 | L41: -1145.414905 | M41: -1443.723973 | N41: -368.668976
A42: Provisions financed from other resources | B42: Egyéb forrásból finanszírozott ellátások | C42: 0 | D42: 0 | E42: 0 | F42: 5.143504 | G42: 5.716792 | H42: 2.888979 | I42: 13.333051 | J42: 16.812194 | K42: 20.664823 | L42: 20.346747 | M42: 21.647735 | N42: 19.36082
A43: Pension Security Fund | B43: ebből: Ny Alap | C43: 0 | D43: 0 | E43: 0 | F43: 5.143504 | G43: 5.716792 | H43: 2.888979 | I43: 13.333719 | J43: 16.812194 | K43: 20.664823 | L43: 20.346747 | M43: 21.647735 | N43: 19.36082
A44: Health Security Fund | B44: E Alap | C44: 0 | D44: 0 | E44: 0 | F44: 0 | G44: 0 | H44: 0 | I44: -0.000668 | J44: 0 | K44: 0 | L44: 0 | M44: 0 | N44: 0
A45: EXPENDITURES OF PROVIONS NOT AFFECTING THE SOCIAL SECURITY FUNDS | B45: NEM A TB ALAPOKBÓL FIN. ELLÁTÁSOK KIADÁSAI | C45: 0 | D45: 0 | E45: 0 | F45: -5.887709 | G45: 462.677004 | H45: 121.211098 | I45: -1227.114118 | J45: 1676.274742 | K45: -1198.579541 | L45: -1174.467069 | M45: -1289.311587 | N45: -182.166119
A46: Pension Security Fund | B46: ebből: Ny Alap | C46: 0 | D46: 0 | E46: 0 | F46: 293.218939 | G46: 806.267991 | H46: 718.954253 | I46: -498.349936 | J46: 2497.363353 | K46: -283.744104 | L46: -29.052164 | M46: 154.412386 | N46: 186.502857
A47: Health Security Fund | B47: E Alap | C47: 0 | D47: 0 | E47: 0 | F47: -299.106648 | G47: -343.590987 | H47: -597.743155 | I47: -728.764182 | J47: -821.088611 | K47: -914.835437 | L47: -1145.414905 | M47: -1443.723973 | N47: -368.668976
A48: Total expenditures | B48: Kiadások mindösszesen | C48: 7770485.4 | D48: 9587902.2 | E48: 9595432.078 | F48: 736595.9378 | G48: 1943473.828 | H48: 2694581.877 | I48: 3443809.87 | J48: 4203597.236 | K48: 4959555.489 | L48: 5717073.566 | M48: 6484569.784 | N48: 7262439.057
A49: Pension Security Fund | B49: ebből: Ny Alap | C49: 4169978.8 | D49: 5554573 | E49: 5554573 | F49: 428701.5855 | G49: 1281402.093 | H49: 1711724.46 | I49: 2138201.387 | J49: 2573338.62 | K49: 3002219.823 | L49: 3432513.143 | M49: 3864221.959 | N49: 4297115.331
A50: Health Security Fund | B50: E Alap | C50: 3600506.6 | D50: 4033329.2 | E50: 4040859.078 | F50: 307894.3524 | G50: 662071.7345 | H50: 982857.4174 | I50: 1305608.483 | J50: 1630258.616 | K50: 1957335.667 | L50: 2284560.423 | M50: 2620347.825 | N50: 2965323.726

Sheet G2_telj.arány
B1: Magyar Államkincstár | Q1: 9. Szám
C2: A társadalombiztosítás pénzügyi alapjai 2023. évi bevételeinek havi alakulása
Q3: %-ban
A4: Hungarian State Treasury | Q4: No. 9
C5: Monthly Revenues of Social Security Funds 2023
Q6: on %
B7: Bevételek | C7: Törvényi előirányzat | D7: Törvénnyel módosított előirányzat | E7: Módosított előirányzat | F7: I.hó | G7: II.hó | H7: III.hó | I7: IV.hó | J7: V.hó | K7: VI.hó | L7: VII.hó | M7: VIII.hó | N7: IX.hó | O7: X.hó | P7: XI.hó | Q7: XII.hó
A8: Revenues | C8: approved | D8: appropriation amended by Law | E8: appropriation amended by governmental and ministerial decision | F8: January | G8: February | H8: March | I8: April | J8: May | K8: June | L8: July | M8: August | N8: September | O8: October | P8: November | Q8: December
A9: Contributions | B9: Járulékbevételek, hozzájárulások | C9: 5639900 | D9: 7022100 | E9: 7022100 | F9: 8.140232608 | G9: 7.495243345 | H9: 7.579405141 | I9: 8.340067369 | J9: 8.332074487 | K9: 8.039327032 | L9: 8.241608896 | M9: 8.08013546 | N9: 7.832992215
A10: Pension Security Fund | B10: ebből: Ny Alap | C10: 3609900 | D10: 4474700 | E10: 4474700 | F10: 8.134510408 | G10: 7.463909188 | H10: 7.559190372 | I10: 8.342094626 | J10: 8.334231126 | K10: 8.027079961 | L10: 8.228393939 | M10: 8.067321085 | N10: 7.802873507
A11: Health Security Fund | B11: E Alap | C11: 2030000 | D11: 2547400 | E11: 2547400 | F11: 8.150284081 | G11: 7.550284153 | H11: 7.614913906 | I11: 8.33650634 | J11: 8.328286189 | K11: 8.060839936 | L11: 8.264821963 | M11: 8.102644876 | N11: 7.885897996
A12: Contributions from the central budget | B12: Költségvetési hozzájárulások | C12: 1790733.8 | D12: 2333677.5 | E12: 2333677.5 | F12: 6.271423536 | G12: 25.68516858 | H12: 6.804333504 | I12: 6.804376354 | J12: 6.804333504 | K12: 6.804333504 | L12: 6.804376354 | M12: 6.804333504 | N12: 6.804333504
A13: Pension Security Fund | B13: ebből: Ny Alap | C13: 554407.2 | D13: 1071559 | E13: 1071559 | F13: 2.971912886 | G13: 46.20193568 | H13: 5.082613277 | I13: 5.082613277 | J13: 5.082613277 | K13: 5.082613277 | L13: 5.082613277 | M13: 5.082613277 | N13: 5.082613277
A14: Health Security Fund | B14: E Alap | C14: 1236326.6 | D14: 1262118.5 | E14: 1262118.5 | F14: 9.072761393 | G14: 8.266101796 | H14: 8.266101796 | I14: 8.266181028 | J14: 8.266101796 | K14: 8.266101796 | L14: 8.266181028 | M14: 8.266101796 | N14: 8.266101796
A15: Other revenues | B15: Egyéb bevételek | C15: 192632 | D15: 231677.2 | E15: 231677.2 | F15: 9.588004186 | G15: 11.39197541 | H15: 9.235247524 | I15: 7.894000772 | J15: 9.900455927 | K15: 10.65448118 | L15: 9.638644509 | M15: 10.37338614 | N15: 10.20700464
A16: Pension Security Fund | B16: ebből: Ny Alap | C16: 5671.6 | D16: 8300 | E16: 8300 | F16: 28.73838052 | G16: 23.22808667 | H16: 17.59626999 | I16: 1.780912024 | J16: 14.13866269 | K16: 7.642544181 | L16: -1.042255048 | M16: 7.849910446 | N16: 6.141800072
A17: Health Security Fund | B17: E Alap | C17: 186960.4 | D17: 223377.2 | E17: 223377.2 | F17: 8.876435935 | G17: 10.95218243 | H17: 8.924578008 | I17: 8.121144082 | J17: 9.742977383 | K17: 10.76639537 | L17: 10.03551342 | M17: 10.46715063 | N17: 10.35805497
A18: Revenues of property management | B18: Vagyongazdálkodás bevételei | C18: 0 | D18: 27.7 | E18: 27.7 | F18: 0 | G18: 50.46546209 | H18: 9.037361011 | I18: 28.88415523 | J18: 34.27649819 | K18: 34.98343321 | L18: 52.9250722 | M18: 193.4261661 | N18: 28.29998917
A19: Pension Security Fund | B19: ebből: Ny Alap | C19: 0 | D19: 14 | E19: 14 | F19: 0 | G19: 56.02572143 | H19: 13.48525 | I19: 35.6027 | J19: 41.59135714 | K19: 43.64952857 | L19: 63.7846 | M19: 220.5929071 | N19: 35.69343571
A20: Health Security Fund | B20: E Alap | C20: 0 | D20: 13.7 | E20: 13.7 | F20: 0 | G20: 44.78344526 | H20: 4.492072993 | I20: 22.01848905 | J20: 26.80145985 | K20: 26.12756934 | L20: 41.82774453 | M20: 165.6645328 | N20: 20.74464234
A21: Revenues of Social Security budgetary institutions | B21: Tb. költségvetési szerv bevételei | C21: 419.8 | D21: 419.8 | E21: 847.598855 | F21: 5.101059982 | G21: 7.678553436 | H21: 6.723609012 | I21: 4.454482775 | J21: 7.684088955 | K21: 7.288884787 | L21: 4.703171762 | M21: 3.816109332 | N21: 187.2848943
A22: Pension Security Fund | B22: ebből: Ny Alap | C22: 0 | D22: 0 | E22: 0
A23: Health Security Fund | B23: E Alap | C23: 419.8 | D23: 419.8 | E23: 847.598855 | F23: 5.101059982 | G23: 7.678553436 | H23: 6.723609012 | I23: 4.454482775 | J23: 7.684088955 | K23: 7.288884787 | L23: 4.703171762 | M23: 3.816109332 | N23: 187.2848943
A24: SUBTOTAL OF BUDGETARY REVENUES | B24: KÖLTSÉGVETÉSI BEVÉTELI FŐÖSSZEG | C24: 7623685.6 | D24: 9587902.2 | E24: 9588329.999 | F24: 7.720077742 | G24: 12.01673446 | H24: 7.430700278 | I24: 7.955237542 | J24: 7.998155326 | K24: 7.801945263 | L24: 7.925376832 | M24: 7.825190488 | N24: 7.655914145
A25: Pension Security Fund | B25: ebből: Ny Alap | C25: 4169978.8 | D25: 5554573 | E25: 5554573 | F25: 7.16933638 | G25: 14.9607237 | H25: 7.096435134 | I25: 7.7035572 | J25: 7.715703295 | K25: 7.458564126 | L25: 7.607813711 | M25: 7.491737747 | N25: 7.275683429
A26: Health Security Fund | B26: E Alap | C26: 3453706.8 | D26: 4033329.2 | E26: 4033756.999 | F26: 8.478460834 | G26: 7.962795868 | H26: 7.890990807 | I26: 8.301806964 | J26: 8.387098048 | K26: 8.274788717 | L26: 8.362668304 | M26: 8.28436232 | N26: 8.179500288
A27: BALANCE OF SOCIAL SECURITY FUNDS | B27: TB ALAPOK KÖLTSÉGVETÉS SZERINTI EGYENLEGE | C27: 7174118.3 | D27: 0 | E27: -7102.078745 | F27: -51.03723406 | G27: 763.229648 | H27: 548.7048594 | I27: -171.7540708 | J27: -140.8819842 | K27: 151.4605733 | L27: -34.03679879 | M27: 243.6747884 | N27: 601.0608581
A28: Pension Security Fund | B28: ebből: Ny Alap | C28: 4089676.8 | D28: 0 | E28: 0
A29: Health Security Fund | B29: E Alap | C29: 3416068.3 | D29: 0 | E29: -7102.078745 | F29: -476.0162406 | G29: 464.9628938 | H29: 38.53014249 | I29: -168.8608828 | J29: -191.1087926 | K29: -93.12867094 | L29: -139.0351028 | M29: 26.959235 | N29: 196.557676
A30: BALANCE OF PROVISIONS NOT AFFECTING THE SOCIAL SECURITY FUNDS | B30: NEM A TB ALAPOKBÓL FIN. ELLÁTÁSOK EGYENLEGE | C30: 0 | D30: 0 | E30: 0
A31: Pension Security Fund | B31: ebből: Ny Alap | C31: 0 | D31: 0 | E31: 0
A32: Health Security Fund | B32: E Alap | C32: 0 | D32: 0 | E32: 0
A33: BALANCE | B33: PÉNZFORGALMI EGYENLEG | C33: 7623685.6 | D33: 0 | E33: -7102.078745 | F33: -51.12013526 | G33: 769.8272193 | H33: 543.8968881 | I33: -190.7390084 | J33: -100.0011525 | K33: 110.9815194 | L33: -33.69728591 | M33: 242.0577335 | N33: 616.649892
A34: Pension Security Fund | B34: ebből: Ny Alap | C34: 4163003.8 | D34: 0 | E34: 0
A35: Health Security Fund | B35: E Alap | C35: 3453706.8 | D35: 0 | E35: -7102.078745 | F35: -480.2277772 | G35: 464.3365372 | H35: 34.95158222 | I35: -170.7057092 | J35: -192.4087561 | K35: -94.4486623 | L35: -142.2817504 | M35: 22.7589286 | N35: 211.6948638

Sheet G3_telj.arány
B1: Magyar Államkincstár | Q1: 9. Szám
C2: A társadalombiztosítás pénzügyi alapjai 2023. évi kiadásainak havi alakulása
Q3: %-ban
A4: Hungarian State Treasury | Q4: No. 9
C5: Monthly Expenditures of Social Security Funds 2023
Q6: on %
B7: Kiadások | C7: Törvényi előirányzat | D7: Törvénnyel módosított előirányzat | E7: Módosított előirányzat | F7: I.hó | G7: II.hó | H7: III.hó | I7: IV.hó | J7: V.hó | K7: VI.hó | L7: VII.hó | M7: VIII.hó | N7: IX.hó | O7: X.hó | P7: XI.hó | Q7: XII.hó
A8: Expenditures | C8: approved | D8: appropriation amended by Law | E8: appropriation amended by governmental and ministerial decision | F8: January | G8: February | H8: March | I8: April | J8: May | K8: June | L8: July | M8: August | N8: September | O8: October | P8: November | Q8: December
A9: Retirement allowances | B9: Nyugellátások | C9: 4162660 | D9: 5545800 | E9: 5545800 | F9: 7.712566798 | G9: 15.35504989 | H9: 7.747800566 | I9: 7.704425388 | J9: 7.779220887 | K9: 7.771774338 | L9: 7.74342054 | M9: 7.770119538 | N9: 7.794276425
A10: Pension Security Fund | B10: ebből: Ny Alap | C10: 4162660 | D10: 5545800 | E10: 5545800 | F10: 7.712566798 | G10: 15.35504989 | H10: 7.747800566 | I10: 7.704425388 | J10: 7.779220887 | K10: 7.771774338 | L10: 7.74342054 | M10: 7.770119538 | N10: 7.794276425
A11: Health Security Fund | B11: E Alap | C11: 0 | D11: 0 | E11: 0
A12: Financial provisions of health security | B12: Egészségbiztosítás pénzbeli ellátásai | C12: 887390.6 | D12: 1109199.6 | E12: 1109199.6 | F12: 7.789147669 | G12: 10.10355996 | H12: 7.407080686 | I12: 7.564717648 | J12: 7.338187848 | K12: 7.693255258 | L12: 7.671078426 | M12: 7.331991953 | N12: 8.106356727
A13: Pregnancy and confinement benefit | B13: ebből : Csecsemőgondozási díj | C13: 0 | D13: 154303.9 | E13: 154303.9 | F13: 8.248839775 | G13: 7.343779576 | H13: 8.669425156 | I13: 7.311054524 | J13: 8.566540023 | K13: 8.159157636 | L13: 7.943739673 | M13: 7.696193199 | N13: 7.732700842
A14: Sick benefit | B14: Táppénz | C14: 181865.5 | D14: 225218.1 | E14: 225218.1 | F14: 8.287185148 | G14: 6.441140838 | H14: 6.377744299 | I14: 6.445726121 | J14: 6.080236529 | K14: 6.933531491 | L14: 7.048359845 | M14: 6.254894647 | N14: 7.59797584
A15: Child-care pay expenditures | B15: GYED és örökbefogadói díj | C15: 266719.3 | D15: 343113.5 | E15: 343113.5 | F15: 7.395392808 | G15: 8.006573182 | H15: 7.239483981 | I15: 8.304425376 | J15: 7.385435521 | K15: 8.193532915 | L15: 8.145286531 | M15: 7.689203414 | N15: 9.294882895
A16: Disability and rehabilitation provisions | B16: Rokkantsági, rehabilitációs ellátások | C16: 301346.2 | D16: 374579.1 | E16: 374579.1 | F16: 7.668936441 | G16: 15.22676503 | H16: 7.655335304 | I16: 7.669138358 | J16: 7.542961302 | K16: 7.510474741 | L16: 7.507694243 | M16: 7.50052041 | N16: 7.501980373
A17: Other financial provisions of the Health Security Fund | B17: EA egyéb pénzbeli ellátásai | C17: 137459.6 | D17: 11985 | E17: 11985 | F17: 7.541494977 | G17: 14.37113481 | H17: 7.536760434 | I17: 7.417936813 | J17: 7.409836087 | K17: 7.361735261 | L17: 7.393055861 | M17: 7.389799491 | N17: 7.333767267
A18: Provisions of health security in kind | B18: Egészségbiztosítás természetbeni ellátásai | C18: 2690476.8 | D18: 2898818.1 | E18: 2905118.1 | F18: 7.601383106 | G18: 8.237192985 | H18: 8.15499045 | I18: 8.163609878 | J18: 8.282004379 | K18: 8.265928746 | L18: 8.277851626 | M18: 8.670120399 | N18: 8.683002203
A19: Curative and preventive provisions | B19: ebből: Gyógyító-megelőző ellátás | C19: 2122969 | D19: 2305629.7 | E19: 2311929.7 | F19: 7.750000192 | G19: 8.073870904 | H19: 8.290351394 | I19: 8.008672541 | J19: 8.230896318 | K19: 8.064580818 | L19: 8.212921938 | M19: 8.771049173 | N19: 8.640448338
A20: Medicine subsidies | B20: Gyógyszertámogatás | C20: 449567.3 | D20: 472008.8 | E20: 472008.8 | F20: 7.329288112 | G20: 9.119761287 | H20: 7.825553032 | I20: 8.830657801 | J20: 8.794792134 | K20: 9.594469944 | L20: 8.695938484 | M20: 8.811094205 | N20: 9.428890802
A21: Therapeutic aid subsidies | B21: Gyógyászati segédeszköz támogatás | C21: 80302 | D21: 84477.7 | E21: 84477.7 | F21: 6.647057028 | G21: 7.941551388 | H21: 7.406063354 | I21: 7.72810066 | J21: 7.217765407 | K21: 7.883825392 | L21: 7.092337037 | M21: 6.716977798 | N21: 6.970271035
A22: Other in-kind provisions of the Health Security Fund | B22: EA egyéb természetbeni ellátásai | C22: 37638.5 | D22: 32701.9 | E22: 32701.9 | F22: 4.416974283 | G22: 8.816151933 | H22: 6.272530217 | I22: 11.61285892 | J22: 8.25602391 | K22: 5.323043068 | L22: 10.90868195 | M22: 5.605967228 | N22: 6.412038178
A23: Provision of in-kind supplies | B23: Természetbeni ellátások céltartaléka | C23: 0 | D23: 4000 | E23: 4000 | F23: 0 | G23: 0 | H23: 0 | I23: 0 | J23: 0 | K23: 0 | L23: 0 | M23: 0 | N23: 0
A24: Other expenditures | B24: Egyéb kiadások | C24: 22980 | D24: 26678.4 | E24: 26678.4 | F24: 4.553149578 | G24: 10.36266933 | H24: 6.886371049 | I24: 5.798573022 | J24: 10.42803178 | K24: 6.674387823 | L24: 6.688203944 | M24: 10.00678822 | N24: 6.59814285
A25: Pension Security Fund | B25: ebből: Ny Alap | C25: 7315.8 | D25: 8770 | E25: 8770 | F25: 7.808860034 | G25: 7.150537662 | H25: 8.348418255 | I25: 4.814237423 | J25: 8.226767845 | K25: 7.471477902 | L25: 6.887253991 | M25: 6.956237708 | N25: 6.913339008
A26: Health Security Fund | B26: E Alap | C26: 15664.2 | D26: 17908.4 | E26: 17908.4 | F26: 2.958781533 | G26: 11.93569622 | H26: 6.17038559 | I26: 6.280616264 | J26: 11.50602226 | K26: 6.284041394 | L26: 6.590726285 | M26: 11.5006865 | N26: 6.443786776
A27: Expenditures of property management | B27: Vagyongazdálkodás kiadásai | C27: 3 | D27: 15.8 | E27: 15.8 | F27: 0 | G27: 1.902544304 | H27: 4.100607595 | I27: 1.873791139 | J27: 0.02875316456 | K27: 2.71456962 | L27: 0.03720886076 | M27: 1.914367089 | N27: 4.219689873
A28: Pension Security Fund | B28: ebből: Ny Alap | C28: 3 | D28: 3 | E28: 3 | F28: 0 | G28: 0 | H28: 0 | I28: 0 | J28: 0 | K28: 0 | L28: 0 | M28: 0 | N28: 0
A29: Health Security Fund | B29: E Alap | C29: 0 | D29: 12.8 | E29: 12.8 | F29: 0 | G29: 2.348453125 | H29: 5.0616875 | I29: 2.312960937 | J29: 0.0354921875 | K29: 3.350796875 | L29: 0.0459296875 | M29: 2.363046875 | N29: 5.208679687
A30: Contributions to the central budget | B30: Költségvetési befizetések | C30: 0 | D30: 0 | E30: 0
A31: Pension Security Fund | B31: ebből: Ny Alap | C31: 0 | D31: 0 | E31: 0
A32: Health Security Fund | B32: E Alap | C32: 0 | D32: 0 | E32: 0
A33: Expenditures of Social Security budgetary institution | B33: Tb. költségvetési szerv kiadásai | C33: 6975 | D33: 7390.3 | E33: 8620.1776 | F33: 5.072254497 | G33: 8.297307448 | H33: 10.00857362 | I33: 7.966269604 | J33: 7.943571975 | K33: 6.687201155 | L33: 8.191234123 | M33: 9.537589666 | N33: 6.717442121
A34: Pension Security Fund | B34: ebből: Ny Alap | C34: 0 | D34: 0 | E34: 0
A35: Health Security Fund | B35: E Alap | C35: 6975 | D35: 7390.3 | E35: 8620.1776 | F35: 5.072254497 | G35: 8.297307448 | H35: 10.00857362 | I35: 7.966269604 | J35: 7.943571975 | K35: 6.687201155 | L35: 8.191234123 | M35: 9.537589666 | N35: 6.717442121
A36: SUBTOTAL OF BUDGETARY EXPENDITURES | B36: KÖLTSÉGVETÉSI KIADÁSI FŐÖSSZEG | C36: 7770485.4 | D36: 9587902.2 | E36: 9595432.078 | F36: 7.676588397 | G36: 12.57274624 | H36: 7.831325458 | I36: 7.822225329 | J36: 7.887961385 | K36: 7.908274491 | L36: 7.894318441 | M36: 7.999755052 | N36: 8.095124032
A37: Pension Security Fund | B37: ebből: Ny Alap | C37: 4169978.8 | D37: 5554573 | E37: 5554573 | F37: 7.712714668 | G37: 15.34208766 | H37: 7.748744684 | I37: 7.699857969 | J37: 7.779923308 | K37: 7.771296009 | L37: 7.742064575 | M37: 7.768830321 | N37: 7.792881322
A38: Health Security Fund | B38: E Alap | C38: 3600506.6 | D38: 4033329.2 | E38: 4040859.078 | F38: 7.626929153 | G38: 8.766003953 | H38: 7.944841155 | I38: 7.990431747 | J38: 8.036470744 | K38: 8.096565388 | L38: 8.103606912 | M38: 8.317184652 | N38: 8.510587468
A39: Provisions financed from the Central Budget | B39: Központi költségvetésből finanszírozott ellátások | C39: 0 | D39: 0 | E39: 0
A40: Pension Security Fund | B40: ebből: Ny Alap | C40: 0 | D40: 0 | E40: 0
A41: Health Security Fund | B41: E Alap | C41: 0 | D41: 0 | E41: 0
A42: Provisions financed from other resources | B42: Egyéb forrásból finanszírozott ellátások | C42: 0 | D42: 0 | E42: 0
A43: Pension Security Fund | B43: ebből: Ny Alap | C43: 0 | D43: 0 | E43: 0
A44: Health Security Fund | B44: E Alap | C44: 0 | D44: 0 | E44: 0
A45: EXPENDITURES OF PROVIONS NOT AFFECTING THE SOCIAL SECURITY FUNDS | B45: NEM A TB ALAPOKBÓL FIN. ELLÁTÁSOK KIADÁSAI | C45: 0 | D45: 0 | E45: 0
A46: Pension Security Fund | B46: ebből: Ny Alap | C46: 0 | D46: 0 | E46: 0
A47: Health Security Fund | B47: E Alap | C47: 0 | D47: 0 | E47: 0
A48: Total expenditures | B48: Kiadások mindösszesen | C48: 7770485.4 | D48: 9587902.2 | E48: 9595432.078 | F48: 7.676527038 | G48: 12.57762944 | H48: 7.827766828 | I48: 7.808173588 | J48: 7.918219417 | K48: 7.878313836 | L48: 7.894569732 | M48: 7.998558186 | N48: 8.106662287
A49: Pension Security Fund | B49: ebből: Ny Alap | C49: 4169978.8 | D49: 5554573 | E49: 5554573 | F49: 7.717993543 | G49: 15.35132418 | H49: 7.747172759 | I49: 7.677942618 | J49: 7.833855685 | K49: 7.721227219 | L49: 7.746649841 | M49: 7.772133267 | N49: 7.793459052
A50: Health Security Fund | B50: E Alap | C50: 3600506.6 | D50: 4033329.2 | E50: 4040859.078 | F50: 7.619527097 | G50: 8.76490309 | H50: 7.938551597 | I50: 7.987189342 | J50: 8.034185971 | K50: 8.094245416 | L50: 8.097900713 | M50: 8.309802334 | N50: 8.537192083
